Workbook

Sheet Flujo de caja (2)
A1: Variables
A2: Horizonte de Evaluación (años) | B2: ='[2]Rendimientos & Supuestos '!D6 -> 5
B3: AÑO 1 | C3: AÑO 2 | D3: AÑO 3 | E3: AÑO 4 | F3: AÑO 5
A4: Venta de semillas | B4: =[2]ER!$Z$6 -> 18747727.27 | C4: =B4+(B4*$B$10) -> 19310159.09 | D4: =C4+(C4*$B$10) -> 19889463.86 | E4: =D4+(D4*$B$10) -> 20486147.78 | F4: =E4+(E4*$B$10) -> 21100732.21
B6: AÑO 0 | C6: AÑO 1 | D6: AÑO 2 | E6: AÑO 3 | F6: AÑO 4 | G6: AÑO 5
A7: K trabajo | B7: =([2]ER!$Z$9/12)*'[2]Rendimientos & Supuestos '!$D$7 -> 3858988.299 | C7: =B7+(B7*$B$10) -> 3974757.948 | D7: =C7+(C7*$B$10) -> 4094000.686 | E7: =D7+(D7*$B$10) -> 4216820.707 | F7: =E7+(E7*$B$10) -> 4343325.328 | G7: =F7+(F7*$B$10) -> 4473625.088
A8: Costo variable unitario | C8: ='[2]Gastos operación'!E22+'[2]Gastos operación'!$E$21 -> 13103294.71 | D8: =C8+(C8*$B$10) -> 13496393.55 | E8: =D8+(D8*$B$10) -> 13901285.36 | F8: 14318323.92 | G8: 14747873.63
A9: Gastos de operación | C9: ='[2]Gastos operación'!E25-'[2]Gastos operación'!E22 -> 3641960.88 | D9: =C9+(C9*$B$10) -> 3751219.706 | E9: 3863756.298 | F9: 3979668.987 | G9: 4099059.056
A10: Inflación | B10: ='[2]Rendimientos & Supuestos '!$D$16 -> 0.03
A11: Inversión en activos fijos | B11: =[2]Inversiones!$H$23 -> 929066.6667
A12: Inversión en preoperativos
A13: Vida útil de equipos (años) | B13: 2 | C13: 5 | D13: 10
A14: Tasa de corte | B14: ='[2]Rendimientos & Supuestos '!D12 -> 0.3
A15: Tasa ISR | B15: ='[2]Rendimientos & Supuestos '!D13 -> 0.25
A16: Financiamiento bancario (valor) | B16: ='[2]Rendimientos & Supuestos '!D11 -> 2394027.483
A17: Financiamiento bancario (tasa) | B17: ='[2]Rendimientos & Supuestos '!$D$9 -> 0.18
A18: Financiamiento bancario (años) | B18: ='[2]Rendimientos & Supuestos '!D10 -> 5
A20: 1. Ingresos del proyecto
A21: Calendario de ingresos
A22: Concepto | B22: Año 0 | C22: Año 1 | D22: Año 2 | E22: Año 3 | F22: Año 4 | G22: Año 5
A23: Cantidad (QQ) | C23: =[2]ER!Z8 -> 9020 | D23: =C23 -> 9020 | E23: =D23 -> 9020 | F23: =E23 -> 9020 | G23: =F23 -> 9020
A24: Precio de venta ($) | C24: =[2]Productos!AB11 -> 83.13848015 | D24: =C24+(C24*$B$10) -> 85.63263455 | E24: =D24+(D24*$B$10) -> 88.20161359 | F24: 90.84766199 | G24: 93.57309185
A25: Ingresos por venta semilla | C25: =[2]ER!Z6 -> 18747727.27 | D25: =C25+(C25*$B$10) -> 19310159.09 | E25: 19889463.86 | F25: 20486147.78 | G25: 21100732.21
A26: Ingresos por capacitaciones | C26: 0 | D26: 0 | E26: 0 | F26: 0 | G26: 0
A27: Ingresos Brutos | C27: =C25+C26 -> 18747727.27 | D27: =D25+D26 -> 19310159.09 | E27: 19889463.86 | F27: 20486147.78 | G27: 21100732.21
A29: 2. Costos variables
A30: Calendario de costos variables
A31: Concepto | B31: Año 0 | C31: Año 1 | D31: Año 2 | E31: Año 3 | F31: Año 4 | G31: Año 5
A32: Costo variable total | C32: =C8 -> 13103294.71 | D32: =D8 -> 13496393.55 | E32: =E8 -> 13901285.36 | F32: =F8 -> 14318323.92 | G32: =G8 -> 14747873.63
A33: Total de costos variables | C33: =SUM(C32:C32) -> 13103294.71 | D33: =SUM(D32:D32) -> 13496393.55 | E33: =SUM(E32:E32) -> 13901285.36 | F33: =SUM(F32:F32) -> 14318323.92 | G33: =SUM(G32:G32) -> 14747873.63
A35: 3. Costos fijos
A36: Calendario de los costos fijos
A37: Concepto | B37: Año 0 | C37: Año 1 | D37: Año 2 | E37: Año 3 | F37: Año 4 | G37: Año 5
A38: Gastos de operación | C38: =C9 -> 3641960.88 | D38: =D9 -> 3751219.706 | E38: =E9 -> 3863756.298 | F38: =F9 -> 3979668.987 | G38: =G9 -> 4099059.056
A39: Total de costos fijos | C39: =SUM(C38:C38) -> 3641960.88 | D39: =SUM(D38:D38) -> 3751219.706 | E39: =SUM(E38:E38) -> 3863756.298 | F39: =SUM(F38:F38) -> 3979668.987 | G39: =SUM(G38:G38) -> 4099059.056
A41: 4. Capital de trabajo
A42: Capital de trabajo
A43: Necesidad de Efectivo
A44: Concepto | B44: Cobertura | C44: Año 1 | D44: Año 7 | E44: Año 8 | F44: Año 9 | G44: Año 10
A45: Capital de trabajo | C45: =B7 -> 3858988.299 | D45: =C7 -> 3974757.948 | E45: =D7 -> 4094000.686 | F45: =E7 -> 4216820.707 | G45: =F7 -> 4343325.328
A46: Efectivo requerido en caja | C46: =SUM(C45:C45) -> 3858988.299 | D46: =SUM(D45:D45) -> 3974757.948 | E46: =SUM(E45:E45) -> 4094000.686 | F46: =SUM(F45:F45) -> 4216820.707 | G46: =SUM(G45:G45) -> 4343325.328
A48: Cálculo del Capital de Trabajo
A49: Concepto | B49: Cobertura | C49: Año 1 | D49: Año 2 | E49: Año 3 | F49: Año 4 | G49: Año 5
A50: Activo circulante | C50: =C51 -> 3858988.299 | D50: =D51 -> 3974757.948 | E50: =E51 -> 4094000.686 | F50: =F51 -> 4216820.707 | G50: =G51 -> 4343325.328
A51: Efectivo | C51: =C46 -> 3858988.299 | D51: =D46 -> 3974757.948 | E51: =E46 -> 4094000.686 | F51: =F46 -> 4216820.707 | G51: =G46 -> 4343325.328
A52: Pasivo circulante | C52: =SUM(C53:C54) -> 0 | D52: =SUM(D53:D54) -> 0 | E52: =SUM(E53:E54) -> 0 | F52: =SUM(F53:F54) -> 0 | G52: =SUM(G53:G54) -> 0
A53: Cuentas por pagar | C53: 0 | D53: 0 | E53: 0 | F53: 0 | G53: 0
A54: Proveedores | C54: 0 | D54: 0 | E54: 0 | F54: 0 | G54: 0
A55: Capital de Trabajo (Ac - Pc) | C55: =C50-C52 -> 3858988.299 | D55: =D50-D52 -> 3974757.948 | E55: =E50-E52 -> 4094000.686 | F55: =F50-F52 -> 4216820.707 | G55: =G50-G52 -> 4343325.328
A56: Incremento Capital Trabajo | B56: =C55-B55 -> 3858988.299 | C56: =D55-C55 -> 115769.649 | D56: =E55-D55 -> 119242.7384 | E56: 122820.0206 | F56: 126504.6212 | G56: =H55-G55 -> -4343325.328
A58: 5. Inversiones
A59: Calendario de inversiones
A60: Concepto | B60: Año 0 | C60: Año 1 | D60: Año 2 | E60: Año 3 | F60: Año 4 | G60: Año 5
A61: Activos Fijos
A62: Inversiones 3 años | B62: =[2]Inversiones!H8+[2]Inversiones!H9 -> 539066.6667 | E62: =FV(B10,3,,-B62) -> 589052.7015
A63: Inversiones 5 años | B63: =[2]Inversiones!H10+[2]Inversiones!H11 -> 390000
A64: Inversiones 10 años
A65: Gastos Pre-operativos
A66: Gastos puesta en marcha | B66: =B12 -> 0
A67: Capital de trabajo
A68: Capital de trabajo | B68: =B56 -> 3858988.299 | C68: 115769.649 | D68: 119242.7384 | E68: 122820.0206 | F68: 126504.6212 | G68: -4343325.328
A69: Total Inversiones | B69: =SUM(B61:B68) -> 4788054.965 | C69: =SUM(C61:C68) -> 115769.649 | D69: =SUM(D61:D68) -> 119242.7384 | E69: =SUM(E61:E68) -> 711872.722 | F69: =SUM(F61:F68) -> 126504.6212 | G69: =SUM(G61:G68) -> -4343325.328
A71: 6. Depreciaciones y Amortizaciones
A72: Calendario de Depreciaciones y Amortizaciones
A73: Concepto | B73: Año 0 | C73: Año 1 | D73: Año 2 | E73: Año 3 | F73: Año 4 | G73: Año 5
A74: Inversiones 3 años | C74: =$B$62/3 -> 179688.8889 | D74: =$B$62/3 -> 179688.8889 | E74: =$B$62/3 -> 179688.8889 | F74: =$E$62/3 -> 196350.9005 | G74: =$E$62/3 -> 196350.9005
A75: Inversiones 5 años | C75: =$B$63/5 -> 78000 | D75: =$B$63/5 -> 78000 | E75: =$B$63/5 -> 78000 | F75: =$B$63/5 -> 78000 | G75: =$B$63/5 -> 78000
A76: Inversiones 10 años | C76: =$B$64/10 -> 0 | D76: =$B$64/10 -> 0 | E76: =$B$64/10 -> 0 | F76: =$B$64/10 -> 0 | G76: =$B$64/10 -> 0
A77: Total Depreciación | C77: =SUM(C74:C76) -> 257688.8889 | D77: =SUM(D74:D76) -> 257688.8889 | E77: =SUM(E74:E76) -> 257688.8889 | F77: =SUM(F74:F76) -> 274350.9005 | G77: =SUM(G74:G76) -> 274350.9005
A79: Amortización pre-operativos | C79: =$B$66/5 -> 0 | D79: =$B$66/5 -> 0 | E79: =$B$66/5 -> 0 | F79: =$B$66/5 -> 0 | G79: =$B$66/5 -> 0
A80: Total Amortización | C80: =SUM(C79) -> 0 | D80: =SUM(D79) -> 0 | E80: =SUM(E79) -> 0 | F80: =SUM(F79) -> 0 | G80: =SUM(G79) -> 0
A82: 7. Valor de desecho del proyecto
A83: Cálculo del valor de desecho del proyecto (método contable)
A84: Concepto | B84: Valor del | C84: Depreciación por periodo | H84: Valor de
B85: Activo | C85: Año 1 | D85: Año 2 | E85: Año 3 | F85: Año 4 | G85: Año 5 | H85: Desecho
A86: Inversiones 3 años | B86: =B62+E62 -> 1128119.368 | C86: =C74 -> 179688.8889 | D86: =D74 -> 179688.8889 | E86: 179688.8889 | F86: 196350.9005 | G86: 196350.9005 | H86: =B86-SUM(C86:G86) -> 196350.9005
A87: Inversiones 5 años | B87: =B63 -> 390000 | C87: =C75 -> 78000 | D87: 78000 | E87: 78000 | F87: 78000 | G87: 78000 | H87: =B87-SUM(C87:G87) -> 0
A88: Inversiones 10 años | B88: =B64 -> 0 | C88: 0 | D88: 0 | E88: 0 | F88: 0 | G88: 0 | H88: =B88-SUM(C88:G88) -> 0
A89: Amortización pre-operativos | B89: =B66 -> 0 | C89: =C79 -> 0 | D89: =D79 -> 0 | E89: =E79 -> 0 | F89: =F79 -> 0 | G89: =G79 -> 0 | H89: =B89-SUM(C89:G89) -> 0
A90: Valor de desecho total | H90: =SUM(H86:H89) -> 196350.9005
A92: 8. Financiamiento
A93: Cálculo del Financiamiento
A94: Financiamiento bancario (valor) | B94: =B16 -> 2394027.483
A95: Financiamiento bancario (tasa) | B95: =B17 -> 0.18
A96: Financiamiento bancario (periodos) | B96: =B18 -> 5 | C96: años
A97: Modalidad | B97: Pagos exactos
A99: Concepto | B99: Año 0 | C99: Año 1 | D99: Año 2 | E99: Año 3 | F99: Año 4 | G99: Año 5
A100: Saldo crédito | B100: =B94 -> 2394027.483 | C100: =B100-C103 -> 2059395.488 | D100: =C100-D103 -> 1664529.734 | E100: =D100-E103 -> 1198588.145 | F100: =E100-F103 -> 648777.0692 | G100: =F100-G103 -> -9.313225746e-10
A101: Cuota mensual (anualidad) | C101: =PMT($B$95,$B$96,-$B$94) -> 765556.9416 | D101: =PMT($B$95,$B$96,-$B$94) -> 765556.9416 | E101: =PMT($B$95,$B$96,-$B$94) -> 765556.9416 | F101: =PMT($B$95,$B$96,-$B$94) -> 765556.9416 | G101: =PMT($B$95,$B$96,-$B$94) -> 765556.9416
A102: Intereses | C102: =B100*$B$95 -> 430924.9469 | D102: =C100*$B$95 -> 370691.1878 | E102: =D100*$B$95 -> 299615.3522 | F102: =E100*$B$95 -> 215745.866 | G102: =F100*$B$95 -> 116779.8724
A103: Abono a capital (amortización) | C103: =C101-C102 -> 334631.9947 | D103: =D101-D102 -> 394865.7538 | E103: =E101-E102 -> 465941.5895 | F103: =F101-F102 -> 549811.0756 | G103: =G101-G102 -> 648777.0692
A105: 9.Flujo de caja del proyecto
A106: Flujo de caja del proyecto (con) Financiamiento)
A107: Concepto | B107: Año 0 | C107: Año 1 | D107: Año 2 | E107: Año 3 | F107: Año 4 | G107: Año 5
A108: + Ingreso por ventas | C108: =C27 -> 18747727.27 | D108: =D27 -> 19310159.09 | E108: =E27 -> 19889463.86 | F108: =F27 -> 20486147.78 | G108: =G27 -> 21100732.21
A109: - Egresos deducibles de impuestos | C109: =SUM(C110:C112) -> 17176180.53 | D109: =SUM(D110:D112) -> 17618304.44 | E109: =SUM(E110:E112) -> 18064657.01 | F109: =SUM(F110:F112) -> 18513738.77 | G109: =SUM(G110:G112) -> 18963712.56
A110: Costos variables | C110: =C33 -> 13103294.71 | D110: =D33 -> 13496393.55 | E110: =E33 -> 13901285.36 | F110: =F33 -> 14318323.92 | G110: =G33 -> 14747873.63
A111: Costos Fijos | C111: =C39 -> 3641960.88 | D111: =D39 -> 3751219.706 | E111: =E39 -> 3863756.298 | F111: =F39 -> 3979668.987 | G111: =G39 -> 4099059.056
A112: Gastos financieros | C112: =C102 -> 430924.9469 | D112: =D102 -> 370691.1878 | E112: =E102 -> 299615.3522 | F112: =F102 -> 215745.866 | G112: =G102 -> 116779.8724
A113: - Gastos no desembolsables | C113: =SUM(C114:C115) -> 257688.8889 | D113: =SUM(D114:D115) -> 257688.8889 | E113: =SUM(E114:E115) -> 257688.8889 | F113: =SUM(F114:F115) -> 274350.9005 | G113: =SUM(G114:G115) -> 274350.9005
A114: Depreciación de activos | C114: =C77 -> 257688.8889 | D114: =D77 -> 257688.8889 | E114: =E77 -> 257688.8889 | F114: =F77 -> 274350.9005 | G114: =G77 -> 274350.9005
A115: Amortización de pre-operativos | C115: =C79 -> 0 | D115: =D79 -> 0 | E115: =E79 -> 0 | F115: =F79 -> 0 | G115: =G79 -> 0
A116: = Utilidad antes de impuestos | C116: =C108-C109-C113 -> 1313857.849 | D116: =D108-D109-D113 -> 1434165.759 | E116: =E108-E109-E113 -> 1567117.97 | F116: =F108-F109-F113 -> 1698058.111 | G116: =G108-G109-G113 -> 1862668.75
A117: - Impuestos (15%) | C117: =C116*$B$15 -> 328464.4623 | D117: =D116*$B$15 -> 358541.4397 | E117: =E116*$B$15 -> 391779.4924 | F117: =F116*$B$15 -> 424514.5276 | G117: =G116*$B$15 -> 465667.1876
A118: = Utilidad después de impuestos | C118: =C116-C117 -> 985393.387 | D118: =D116-D117 -> 1075624.319 | E118: =E116-E117 -> 1175338.477 | F118: =F116-F117 -> 1273543.583 | G118: =G116-G117 -> 1397001.563
A119: + Gastos no desembolsables | C119: =SUM(C120:C121) -> 257688.8889 | D119: =SUM(D120:D121) -> 257688.8889 | E119: =SUM(E120:E121) -> 257688.8889 | F119: =SUM(F120:F121) -> 274350.9005 | G119: =SUM(G120:G121) -> 274350.9005
A120: Depreciación de activos | C120: =C114 -> 257688.8889 | D120: =D114 -> 257688.8889 | E120: 257688.8889 | F120: 274350.9005 | G120: 274350.9005
A121: Amortización de pre-operativos | C121: =C115 -> 0 | D121: 0 | E121: 0 | F121: 0 | G121: 0
A122: + Ingresos no sujetos a impuestos | B122: =SUM(B123:B125) -> 2394027.483 | C122: =SUM(C123:C125) -> 0 | D122: 0 | E122: 0 | F122: 0 | G122: 4539676.228
A123: Valor de desecho | G123: =H90 -> 196350.9005
A124: Recuperación del capital de trabajo | G124: =-G69 -> 4343325.328
A125: Préstamo bancario | B125: =B94 -> 2394027.483
A126: - Egresos no deducibles de impuestos | B126: =SUM(B127:B132) -> 4788054.965 | C126: =SUM(C127:C132) -> 450401.6437 | D126: =SUM(D127:D132) -> 514108.4922 | E126: 588761.61 | F126: 676315.6968 | G126: 648777.0692
A127: Activos (2 años) | B127: =B62 -> 539066.6667
A128: Activos (5 años) | B128: =B63 -> 390000
A129: Activos (10 años) | B129: =B64 -> 0
A130: Gastos de puesta en marcha (pre-operativos) | B130: =B66 -> 0
A131: Inversión en capital de trabajo | B131: =B68 -> 3858988.299 | C131: =C68 -> 115769.649 | D131: =D68 -> 119242.7384 | E131: =E68 -> 122820.0206 | F131: =F68 -> 126504.6212
A132: Pago préstamo bancario | C132: =C103 -> 334631.9947 | D132: =D103 -> 394865.7538 | E132: =E103 -> 465941.5895 | F132: =F103 -> 549811.0756 | G132: =G103 -> 648777.0692
A133: = Flujo de caja | B133: =B118+B119+B122-B126 -> -2394027.483 | C133: =C118+C119+C122-C126 -> 792680.6322 | D133: =D118+D119+D122-D126 -> 819204.7159 | E133: 844265.7561 | F133: 871578.7866 | G133: 5562251.623
A134: Flujo de caja acumulado | B134: =B133 -> -2394027.483 | C134: =B134+C133 -> -1601346.85 | D134: =C134+D133 -> -782142.1345 | E134: =D134+E133 -> 62123.62159 | F134: =E134+F133 -> 933702.4082 | G134: =F134+G133 -> 6495954.031
A136: 10. Costo del capital
B137: Participación ($) | C137: Part. (%) | D137: Costo | E137: Co promedio
A138: Préstamo bancario | B138: =$B$69*C138 -> 2394027.483 | C138: ='[2]Rendimientos & Supuestos '!D17 -> 0.5 | D138: =B17 -> 0.18 | E138: =C138*D138 -> 0.09
A139: Fondos propios | B139: =$B$69*C139 -> 2394027.483 | C139: ='[2]Rendimientos & Supuestos '!D18 -> 0.5 | D139: =B14 -> 0.3 | E139: =C139*D139 -> 0.15
A140: Total | B140: =SUM(B138:B139) -> 4788054.965 | C140: =SUM(C138:C139) -> 1 | E140: =SUM(E138:E139) -> 0.24
A142: 11. Indicadores financieros
A143: VAN = | B143: =NPV($E$140,C133:G133)+B133 -> 1486801.045
A144: TIR = | B144: =IRR(B133:G133) -> 0.4278258205
A145: PRI = | B145: 3 | C145: años

Sheet Rendimientos & Supuestos
B3: Supuestos Técnicos Campo | M3: Supuestos Técnicos Planta | V3: Demanda de Semillas
C6: Cultivo | D6: Siembra | E6: Costo Semilla | F6: Rendimiento | I6: Precio de Venta | N6: Humedad a cosecha: | Q6: 0.25
D7: (QQ/Ha) | E7: ($/QQ) | F7: Campo (QQ/Ha) | G7: Oro (QQ/Ha) | I7: ($/QQ Oro) | J7: ($/Bolsa) | N7: Maíz | O7: Llega | P7: Selección | Q7: Secado | R7: Desgrane | S7: Acondicionamiento | W7: Cultivo | X7: (QQ oro) | Y7: (Bolsas) | Z7: (Ha)
C8: Maíz | D8: 0.6 | E8: =3750/24.4527 -> 153.357298 | F8: 100 | G8: =S11 -> 48.45 | I8: =J8*100/44 -> 75.12 | J8: 33.0528 | O8: Pérdida (%) | P8: 0.05 | Q8: 0.15 | R8: 0.2 | S8: 0.25 | W8: Maíz | X8: 4000 | Y8: =X8/0.44 -> 9090.909091 | Z8: =W19 -> 82.55933953 | AB8: =_xlfn.FORMULATEXT(Z8) -> =W19
C9: Soya | D9: 1 | E9: =3750/24.4527 -> 153.357298 | F9: 35 | G9: =S18 -> 21.64575 | I9: =J9*100/44 -> 143.1334 | J9: 62.978696 | O9: Semilla | P9: =100%-P8 -> 0.95 | Q9: =100%-Q8 -> 0.85 | R9: =100%-R8 -> 0.8 | S9: =100%-S8 -> 0.75 | W9: Soya | X9: 2000 | Y9: =X9/0.44 -> 4545.454545 | Z9: =W26 -> 92.39689084 | AB9: =_xlfn.FORMULATEXT(Z9) -> =W26
O10: Pérdida (QQ) | P10: =O11*P8 -> 5 | Q10: =P11*Q8 -> 14.25 | R10: =Q11*R8 -> 16.15 | S10: =R11*S8 -> 16.15
O11: =F8 -> 100 | P11: =O11*P9 -> 95 | Q11: =P11*Q9 -> 80.75 | R11: =Q11-R10 -> 64.6 | S11: =R11-S10 -> 48.45 | W11: Total | X11: =SUM(X8:X10) -> 6000 | Y11: =SUM(Y8:Y10) -> 13636.36364 | Z11: =SUM(Z8:Z10) -> 174.9562304
Q12: 1 | R12: 1
N13: Humedad a cosecha: | Q13: 0.18
N14: Soya | O14: Llega | P14: Selección | Q14: Secado | R14: Desgrane | S14: Acondicionamiento
O15: Pérdida (%) | P15: 0.05 | Q15: 0.07 | R15: 0 | S15: 0.3 | W15: Maíz
O16: Semilla | P16: =100%-P15 -> 0.95 | Q16: =100%-Q15 -> 0.93 | R16: =100%-R15 -> 1 | S16: =100%-S15 -> 0.7 | W16: Ha | X16: QQ Oro
O17: Pérdida (QQ) | P17: =O18*P15 -> 1.75 | Q17: =P18*Q15 -> 2.3275 | R17: =Q18*R15 -> 0 | S17: =R18*S15 -> 9.27675 | W17: 1 | X17: =G8 -> 48.45
O18: =F9 -> 35 | P18: =O18*P16 -> 33.25 | Q18: =P18*Q16 -> 30.9225 | R18: =Q18*R16 -> 30.9225 | S18: =R18-S17 -> 21.64575 | W18: X | X18: 4000
W19: =(W17*X18)/X17 -> 82.55933953
W20: =_xlfn.FORMULATEXT(W19) -> =(W17*X18)/X17
W22: Soya
W23: Ha | X23: QQ Oro
W24: 1 | X24: =G9 -> 21.64575
W25: X | X25: 2000
W26: =(W24*X25)/X24 -> 92.39689084
W27: =_xlfn.FORMULATEXT(W26) -> =(W24*X25)/X24

Sheet Distribución Cultivos en Lotes
B2: Distribución de Cultivos por Lotes
B4: Cultivo | C4: Lote | D4: Area (Ha) | E4: Ventana de Mercado | F4: Fecha Siembra | G4: Fecha Cosecha | H4: Fecha Inicio Planta | I4: Fecha Final Planta
B5: Maíz | C5: Guinope | D5: =G16 -> 49.53560372 | E5: Primera
B6: Soya | C6: Zona 2 | D6: =C18 -> 40 | E6: Primera
B7: Soya | C7: Campus Altos | D7: =G17-D6 -> 15.43813451 | E7: Primera
B8: Maíz | C8: San Nicolas | D8: =C21 -> 25 | E8: Postrera
B9: Maíz | C9: Zona 1 | D9: =H16-D8 -> 8.02373581 | E9: Postrera
B10: Soya | C10: Zona 4 | D10: =C20 -> 20 | E10: Postrera
B11: Soya | C11: Zona 3 | D11: =H17-D10 -> 16.95875634 | E11: Postrera
B12: Total | D12: =SUM(D5:D11) -> 174.9562304
G13: Demanda en Ventanas de Mercado
G14: 0.6 | H14: =1-G14 -> 0.4
B15: Lote | C15: Area del lote (ha) | D15: Area a sembrar del lote (ha) | E15: Cultivo | F15: Área (Ha) | G15: Primera | H15: Postrera
B16: Guinope | C16: 50 | D16: =D5 -> 49.53560372 | E16: Maíz | F16: ='Rendimientos & Supuestos '!Z8 -> 82.55933953 | G16: =F16*$G$14 -> 49.53560372 | H16: =F16*$H$14 -> 33.02373581
B17: Campus Altos | C17: 20 | D17: =D7 -> 15.43813451 | E17: Soya | F17: ='Rendimientos & Supuestos '!Z9 -> 92.39689084 | G17: =F17*$G$14 -> 55.43813451 | H17: =F17*$H$14 -> 36.95875634
B18: Zona 2 | C18: 40 | D18: =D6 -> 40 | E18: Total | F18: =SUM(F16:F17) -> 174.9562304
B19: Zona 1 | C19: 10 | D19: =D9 -> 8.02373581
B20: Zona 4 | C20: 20 | D20: =D10 -> 20
B21: San Nicolas | C21: 25 | D21: =D8 -> 25
B22: Zona 3 | C22: 18 | D22: =D11 -> 16.95875634

Sheet Actividades
C5: Actividades Cultivo de Maíz | L5: Actividades Cultivo de Soya
C7: Actividad | D7: Semana | L7: Actividad | M7: Semana
C9: Preparación de Suelo | L9: Preparación de Suelo
C10: Chapeo | D10: -4 | L10: Chapeo | M10: -4
C11: Arado | D11: -3 | L11: Arado | M11: -3
C12: Rastra pesada | D12: -3 | L12: Rastra pesada | M12: -3
C13: Rastra liviana (2) | D13: 0 | L13: Rastra liviana (2) | M13: 0
C14: Siembra | D14: 0 | L14: Siembra | M14: 0
C15: Aplicación Herbicida | D15: 1 | L15: Aplicación Herbicida | M15: 1
C16: Aplicación Insecticida/fungicida (2 + 2) | D16: 3 | E16: 5 | F16: 7 | G16: 9 | L16: Aplicación Insecticida/fungicida (5) | M16: 3 | N16: 5 | O16: 7 | P16: 9 | Q16: 10
C17: Aplicación foliar | D17: 4 | L17: Aplicación foliar | M17: 4
C18: Cultivada | D18: 3 | L18: Cultivada | M18: 3
C19: Acarreo de Cosecha | D19: 17 | L19: Acarreo de Cosecha | M19: 17
C20: Acarreo de Agua (5) | D20: 1 | E20: 3 | F20: 5 | G20: 7 | H20: 9 | L20: Acarreo de Agua (6) | M20: 1 | N20: 3 | O20: 5 | P20: 7 | Q20: 9
L21: Trilladora mecánica | M21: 10
C22: Siembra | L22: Siembra
C23: Semilla | D23: 0 | L23: Semilla | M23: 0
C24: Tratador Gaucho | D24: 0 | L24: Tratador Crusier | M24: 0
C25: Protector Scort | D25: 0 | L25: Protector Scort | M25: 0
C26: 12-24-12 | D26: 0 | L26: 12-24-12 | M26: 0
C27: MO Siembra | D27: 0 | L27: MO Siembra | M27: 0
C28: MO Fertilización | D28: 0 | L28: MO Fertilización | M28: 0
C30: Control de Malezas | L30: Control de Malezas
C31: Prowl | D31: 1 | L31: Flex | M31: 1
C32: Gesaprim 90 | D32: 1 | L32: Fusilade | M32: 1
C33: Convey | D33: 5 | L33: Prowl | M33: 5
C34: MO Herbicida mecanizada | D34: 1 | L34: MO Herbicida | M34: 1
C35: MO Convey | D35: 5 | L35: MO Flex con Fusilade | M35: 5
C37: Control de Plagas | L37: Control de Plagas
C38: Curyom 55EC | D38: 3 | L38: Connet | M38: 3
C39: Mancozeb 80WP | D39: 5 | L39: Nativo | M39: 5
C40: Nativo | D40: 9 | L40: Amistar (2) | M40: 7 | N40: 10
C41: Proclaim 5SG | D41: 7 | L41: Engeo | M41: 9
C42: MO Aplicaciones | D42: 3 | E42: 5 | F42: 7 | G42: 9 | L42: MO Aplicaciones | M42: 3 | N42: 5 | O42: 7 | P42: 9 | Q42: 10
C44: Fertilización | L44: Fertilización
C45: Urea | D45: 4 | L45: Urea | M45: 4
C46: Kelpak | D46: 4 | L46: KCL | M46: 4
C47: Bayfolan | D47: 1 | L47: Bayfolan | M47: 1
C48: MO Urea | D48: 1 | L48: MO Urea | M48: 1
C49: MO foliar | D49: 1 | L49: MO foliar | M49: 1
C51: Riego | L51: Riego
C52: MO Instalar Sistema Riego | D52: -1 | L52: MO Instalar Sistema Riego | M52: -1
C53: MO Recoger Cinta | D53: 17 | L53: MO Recoger Cinta | M53: 13
C54: Cinta | D54: -3 | L54: Cinta | M54: -3
C55: MO Regador | D55: 1 | L55: MO Regador | M55: 1 | Q55: 10
C56: Bomba de riego | D56: 1 | L56: Bomba de riego | M56: 1 | Q56: 10
C58: Cosecha | L58: Cosecha
C59: MO Supervisor de Cosecha | D59: 17 | L59: MO Supervisor de Cosecha | M59: 13
C60: MO Corteros | D60: 17 | L60: MO Corteros | M60: 13
C61: Sacos | D61: 17 | L61: Sacos | M61: 13
C62: Transporte | D62: 17 | L62: Transporte | M62: 13
C64: Mantenimiento | L64: Mantenimiento
C65: Raleo | D65: 2 | L65: Raleo | M65: 2
C66: Limpieza manual de malezas nocivas | D66: 4 | L66: Limpieza manual de malezas nocivas | M66: 4
C67: Descañuele | D67: 6 | E67: 10 | L67: Descañuele | M67: 6 | N67: 10
C68: Despanojado | D68: 8 | L68: Despanojado | M68: 8
C69: Eliminación de machos | D69: 17 | L69: Eliminación de machos | M69: 13
C70: Eliminación de plantas enfermas | D70: 1 | L70: Eliminación de plantas enfermas | M70: 1
C71: Carga y descarga de cosecha | D71: 17 | L71: Carga y descarga de cosecha | M71: 13
C73: Destrucción | L73: Destrucción
C74: Rastra pesada | D74: 17 | L74: Rastra pesada | M74: 13

Sheet Diagrama de Gantt
B2: PLANEACIÓN DE ACTIVIDADES - FINCA EL YEGUARE
B5: Cultivo | C5: Lote | D5: Area (Ha) | E5: Ventana de Mercado | F5: NOVIEMBRE/ 22 | J5: DICIEMBRE/ 22 | N5: ENERO/ 23 | R5: FEBRERO/ 23 | V5: MARZO/ 23 | Z5: ABRIL/ 23 | AD5: MAYO/ 23 | AH5: JUNIO/ 23 | AL5: JULIO/ 23 | AP5: AGOSTO/ 23 | AT5: SEPTIEMBRE/ 23 | AX5: OCTUBRE/ 23 | BB5: NOVIEMBRE/ 23 | BF5: DICIEMBRE/ 23
F6: Semana 1 | G6: Semana 2 | H6: Semana 3 | I6: Semana 4 | J6: Semana 1 | K6: Semana 2 | L6: Semana 3 | M6: Semana 4 | N6: Semana 1 | O6: Semana 2 | P6: Semana 3 | Q6: Semana 4 | R6: Semana 1 | S6: Semana 2 | T6: Semana 3 | U6: Semana 4 | V6: Semana 1 | W6: Semana 2 | X6: Semana 3 | Y6: Semana 4 | Z6: Semana 1 | AA6: Semana 2 | AB6: Semana 3 | AC6: Semana 4 | AD6: Semana 1 | AE6: Semana 2 | AF6: Semana 3 | AG6: Semana 4 | AH6: Semana 1 | AI6: Semana 2 | AJ6: Semana 3 | AK6: Semana 4 | AL6: Semana 1 | AM6: Semana 2 | AN6: Semana 3 | AO6: Semana 4 | AP6: Semana 1 | AQ6: Semana 2 | AR6: Semana 3 | AS6: Semana 4 | AT6: Semana 1 | AU6: Semana 2 | AV6: Semana 3 | AW6: Semana 4 | AX6: Semana 1 | AY6: Semana 2 | AZ6: Semana 3 | BA6: Semana 4 | BB6: Semana 1 | BC6: Semana 2 | BD6: Semana 3 | BE6: Semana 4 | BF6: Semana 1 | BG6: Semana 2 | BH6: Semana 3 | BI6: Semana 4
B7: ='Distribución Cultivos en Lotes'!B5 -> Maíz | C7: ='Distribución Cultivos en Lotes'!C5 -> Guinope | D7: ='Distribución Cultivos en Lotes'!D5 -> 49.53560372 | E7: ='Distribución Cultivos en Lotes'!E5 -> Primera | H7: Chapeo | I7: Arado | L7: Ciclo del cultivo de maíz | AB7: Proceso
B8: ='Distribución Cultivos en Lotes'!B6 -> Soya | C8: ='Distribución Cultivos en Lotes'!C6 -> Zona 2 | D8: ='Distribución Cultivos en Lotes'!D6 -> 40 | E8: ='Distribución Cultivos en Lotes'!E6 -> Primera | L8: Preparación de suelos | P8: Ciclo del cultivo de Soya | AB8: Proceso
B9: ='Distribución Cultivos en Lotes'!B7 -> Soya | C9: ='Distribución Cultivos en Lotes'!C7 -> Campus Altos | D9: ='Distribución Cultivos en Lotes'!D7 -> 15.43813451 | E9: ='Distribución Cultivos en Lotes'!E7 -> Primera | M9: Preparación de suelos | Q9: Ciclo del cultivo de Soya | AC9: Proceso
B10: ='Distribución Cultivos en Lotes'!B8 -> Maíz | C10: ='Distribución Cultivos en Lotes'!C8 -> San Nicolas | D10: ='Distribución Cultivos en Lotes'!D8 -> 25 | E10: ='Distribución Cultivos en Lotes'!E8 -> Postrera | W10: Preparación de suelos | AA10: Ciclo del cultivo de maíz | AQ10: Proceso
B11: ='Distribución Cultivos en Lotes'!B9 -> Maíz | C11: ='Distribución Cultivos en Lotes'!C9 -> Zona 1 | D11: ='Distribución Cultivos en Lotes'!D9 -> 8.02373581 | E11: ='Distribución Cultivos en Lotes'!E9 -> Postrera | W11: Preparación de suelos | AA11: Ciclo del cultivo de maíz | AQ11: Proceso
B12: ='Distribución Cultivos en Lotes'!B10 -> Soya | C12: ='Distribución Cultivos en Lotes'!C10 -> Zona 4 | D12: ='Distribución Cultivos en Lotes'!D10 -> 20 | E12: ='Distribución Cultivos en Lotes'!E10 -> Postrera | Z12: Preparación de suelos | AD12: Ciclo del cultivo de Soya | AP12: Proceso
B13: ='Distribución Cultivos en Lotes'!B11 -> Soya | C13: ='Distribución Cultivos en Lotes'!C11 -> Zona 3 | D13: ='Distribución Cultivos en Lotes'!D11 -> 16.95875634 | E13: ='Distribución Cultivos en Lotes'!E11 -> Postrera | AA13: Preparación de suelos | AE13: Ciclo del cultivo de Soya | AQ13: Proceso
B16: Total | D16: =SUM(D7:D15) -> 174.9562304

Sheet Px Insumos
E3: Precio de Insumos
E7: FERTILIZANTES | F7: UNIDAD | G7: DOSIS | H7: PRECIO/UNIDAD | L7: HERBICIDAS | M7: UNIDAD | N7: DOSIS | O7: PRECIO/UNIDAD | S7: INSECTICIDAS | T7: UNIDAD | U7: DOSIS | V7: PRECIO/UNIDAD
E8: 18-46-0 | F8: QQ | H8: 23.39209985 | L8: Roundup Max | M8: Kg | O8: 11.85963104 | S8: Gaucho | T8: Gr | U8: 0.1 | V8: 0.2302404233
E9: 12-24-12 | F9: QQ | G9: 2 | H9: 18.97540967 | O9: 0 | S9: Furadán TS | T9: Gal | V9: 66.25035272
E10: 0-0-60 | F10: QQ | H10: 17.87123712 | L10: Gesaprim | M10: kg | O10: 8.588008686 | S10: Engeo | T10: Lt | U10: 0.3 | V10: 82.36309283
E11: 46-0-0 | F11: QQ | H11: 17.29870321 | L11: Flex | M11: Lt | N11: 0.6 | O11: 28.42221922 | S11: Lorsban 48 EC | T11: Lt | V11: 14.64051005
E12: MAP | F12: QQ | H12: 107.6363755 | L12: Fusilade | M12: Lt | N12: 1 | O12: 27.35894196 | S12: Match | T12: Lt | V12: 59.70710801
E13: KCl | F13: QQ | G13: 1 | H13: 17.58497017 | L13: Basagrán | M13: Lt | O13: 27.39983724 | S13: Proclaim | T13: Gr | V13: 0.222879273
E14: Nitrato de amonio | F14: QQ | G14: 1 | H14: 19.62973414 | L14: Select | M14: Lt | O14: 24.291796 | S14: Volaton 5 G | T14: Kg | V14: 0.4907433535
E15: Sulf Mg | F15: QQ | H15: 10.91903962 | L15: 2-4D | M15: Lt | N15: 1 | O15: 3.537441673 | S15: Connet | T15: Lt | U15: 0.45 | V15: 29.15833425
E16: Bayfolan (T20+micronutrientes) | F16: Lt | H16: 6.134291919 | L16: Ronstar | M16: Lt | N16: 1 | O16: 40.07737387 | S16: Lorsban 48 EC | T16: Lt | V16: 14.64051005
E17: FERTILIZANTE TERRABLEND | F17: QQ | G17: 6 | H17: 27.56341835 | L17: Arromax | M17: Lt | N17: 0.6 | O17: 28.42221922 | S17: Adherente | T17: Lt | V17: 35.57889313
E18: Urea | F18: QQ | G18: 3 | H18: 17.29870321 | L18: Prowl 45.5 CS | M18: Lt | N18: 3 | O18: 14.31334781 | S18: Scort | T18: Gr | U18: 1 | V18: 0.5320890215
E19: Kelpak | F19: Lt | G19: 2 | H19: 12.67753663 | L19: Gesaprim 90 G | M19: Kg | N19: 2 | O19: 8.588008686 | V19: 0
E20: Bayfolan | F20: Lt | G20: 2 | H20: 6.134291919 | L20: Roundup Max | M20: kg | N20: 1.5 | O20: 11.85963104 | S20: Nomolt 15SC | T20: Lt | U20: 0.25 | V20: 69.93092787
E21: Biozyme | F21: Lt | G21: 0.099 | H21: 26.58193165 | L21: Convey | M21: Lt | N21: 0.1 | O21: 536.9550193 | S21: Curyom 55EC | T21: Lt | U21: 0.25 | V21: 36.39679872
L22: Basta 15SL | M22: Lt | N22: 2 | O22: 15.1312534 | S22: Sunfire 24SC | T22: Lt | U22: 0.2 | V22: 136.1812806
S23: Proclaim 5SG | T23: Kg | U23: 0.1 | V23: 222.879273
S24: Karate Zeon 2.5CS | T24: Lt | U24: 0.25 | V24: 30.2625068
E25: FUNGICIDAS | F25: UNIDAD | H25: PRECIO/UNIDAD | S25: BreakThru | T25: Lt | U25: 1.2 | V25: 35.57889313
E26: Mancozeb | F26: Kg | H26: 4.089527946
E27: Acrobat | F27: Gr | H27: 0.029853554 | L27: MANO DE OBRA | M27: UNIDAD | O27: PRECIO/UNIDAD
E28: Kocide | F28: Gr | H28: 0.1460545695 | L28: Mano de obra temporal | M28: Jornal/día | O28: 16.24762092 | S28: VARIOS | T28: UNIDAD | V28: PRECIO/UNIDAD
E29: Mancozeb 80WP | F29: Kg | G29: 0.7 | H29: 4.089527946 | L29: Mano de obra permanente | M29: Jornal/día | O29: 17.49743791 | S29: Sacos | T29: Unidad | V29: 0.2862669562
E30: Antracol 70WP | F30: Kg | G30: 0.7 | H30: 17.58497017 | L30: Mano de obra especializada | M30: Jornal/día | O30: 19.4971451 | S30: Transporte de cosecha | T30: Viaje | V30: 73.61150302
E31: Nativo | F31: KG | G31: 0.15 | H31: 148.4498644 | L31: Vigilante | M31: Jornal/día | O31: 0 | S31: Sacos cosechados por viaje | T31: sacos | V31: 320
E32: Opera | F32: L | G32: 0.4 | H32: 51.11909932 | L32: Vha por vigilante | M32: Ha | O32: 0.4907433535 | S32: Análisis de suelos | T32: Análisis | V32: 17.26516908
E33: Agrimicin 16.4WP | F33: Kg | G33: 0.5 | H33: 36.80575151 | L33: Vigilante | M33: Jornal/día | O33: 0 | S33: Cinta riego | T33: Rollo | V33: 143.1334781
E34: Amistar | F34: Kg | G34: =120/1000 -> 0.12 | H34: 205.2943029 | L34: Vigilante | M34: L/Ha | O34: 0 | S34: Gastos administrativos | T34: % | V34: 0

Sheet Px Maquinaria
E2: Maquinaria y Riego
F6: Rendimiento (Ha/hora) | K6: Costo (L./Hora)
E7: ENSILAJE / CULTIVOS / HENO | J7: ENSILAJE / CULTIVOS / HENO
E8: Prep. / Siem. Cult./Ens/Heno | J8: Prep. / Siem. Cult./Ens/Heno
E9: Subsolado Primer Pase | F9: 0.3 | J9: Subsolado Primer Pase | K9: 29.40370593
E10: Subsolado Segundo Pase | F10: 0.5 | J10: Subsolado Segundo Pase | K10: 31.29413112
E11: Subsolado Tercer Pase | F11: 0.6 | J11: Subsolado Tercer Pase | K11: 31.29413112
E12: Picado de Rastrojo | F12: 0.6 | J12: Picado de Rastrojo | K12: 38.18130513
E13: Chapeo de Preparación | F13: 0.7 | J13: Chapia de Preparación | K13: 27.71432194
E14: Rastra Incorporación Primer Pase (Rastra pesada) | F14: 0.7 | J14: Rastra Incorporación Primer Pase (Rastra pesada) | K14: 29.99832329
E15: Rastra Incorporación Segundo Pase | F15: 0.75 | J15: Rastra Incorporación Segundo Pase | K15: 33.13850822
E16: Arado | F16: 0.45 | J16: Arado | K16: 28.9023298
E17: Rastra Primer Pase (Rastra liviana) | F17: 0.75 | J17: Rastra Primer Pase (Rastra liviana) | K17: 30.02735894
E18: Rastra Segundo Pase | F18: 0.8 | J18: Rastra Segundo Pase | K18: 32.95317082
E19: Rastra Tercer Pase | F19: 0.8 | J19: Rastra Tercer Pase | K19: 31.58203389
E20: Rastra Cuarto Pase | F20: 0.8 | J20: Rastra Cuarto Pase | K20: 31.0422162
E21: Rastra Quinto Pase | F21: 0.8 | J21: Rastra Quinto Pase | K21: 31.0422162
E22: Aplicación Químico 1 | F22: 0.9 | J22: Aplicación Químico 1 | K22: 24.88068802
E23: Aplicación Químico 2 | F23: 0.9 | J23: Aplicación Químico 2 | K23: 24.88068802
E24: Aplicación Químico 3 | F24: 0.9 | J24: Aplicación Químico 3 | K24: 25.15427744
E25: Aplicación Químico 4 | F25: 0.9 | J25: Aplicación Químico 4 | K25: 30.05255043
E26: Siembra | F26: 0.9 | J26: Siembra | K26: 29.65807457
E27: Siembra y Fertilización | F27: 0.9 | J27: Siembra y Fertilización | K27: 32.84160849
E28: Acarreo Preparación (por hora) | F28: 0.5 | J28: Acarreo Preparación (por hora) | K28: 25.22703014
E29: Mantenim. Cult./Ens/Heno | J29: Mantenim. Cult./Ens/Heno
E30: Chapeo Uniformización | F30: 0.7 | J30: Chapia Uniformización | K30: 30.54738332
E31: Fertilización | F31: 0.9 | J31: Fertilización | K31: 30.77230735
E32: Cultivada | F32: 0.9 | J32: Cultivada | K32: 27.97482487
E33: Fertilizada y Cultivada | F33: 0.9 | J33: Fertilizada y Cultivada | K33: 30.77230735
E34: Aplicación Químico 1 | F34: 0.9 | J34: Aplicación Químico 1 | K34: 30.05255043
E35: Aplicación Químico 2 | F35: 0.9 | J35: Aplicación Químico 2 | K35: 30.05255043
E36: Aplicación Químico 3 | F36: 0.9 | J36: Aplicación Químico 3 | K36: 30.05255043
E37: Aplicación Químico 4 | F37: 0.9 | J37: Aplicación Químico 4 | K37: 30.05255043
E38: Acarreo Mantenimiento (por hora) | F38: 1 | J38: Acarreo Mantenimiento (por hora) | K38: 25.22703014
E39: Transporte (por hora) | F39: 1 | J39: Transporte (por hora) | K39: 24.89050289
E40: Cosecha de Ensilaje | J40: Cosecha de Ensilaje
E41: Picado y Llenado de Vagones | F41: 0.6 | J41: Picado y Llenado de Vagones | K41: 28.36665799
E42: Acarreo Silo (por hora) | F42: 1 | J42: Acarreo Silo (por hora) | K42: 19.39895573
E43: Compactación (por hora) | F43: 1 | J43: Compactación (por hora) | K43: 20.15603898
E44: Acarreo Melaza (por hora) | F44: 1 | J44: Acarreo Melaza (por hora) | K44: 14.88337906
E45: Aplicación Melaza (por hora) | F45: 1 | J45: Aplicación Melaza (por hora) | K45: 14.88337906
E46: Cosecha de Cultivos | J46: Cosecha de Cultivos
E47: Acarreos Varios (por hora) Agua | F47: 1 | J47: Acarreos Varios (por hora) (Agua) | K47: 26.71034283
E48: Combinada | F48: 0.6 | J48: Combinada | K48: 15.90842349
E49: Desgrane (por hora) | F49: 1 | J49: Desgrane (por hora) | K49: 18.96322893
E50: Cosecha Heno | J50: Cosecha Heno
E51: Segadora | F51: 0.8 | J51: Segadora | K51: 23.98486763
E52: Segadora Acarriladora | F52: 0.8 | J52: Segadora Acarriladora | K52: 24.14964212
E53: Embaladora | F53: 0.6 | J53: Embaladora | K53: 19.68420546
E54: Acarreo (por hora) | F54: 1 | J54: Acarreo (por hora) | K54: 18.418303
E55: POTREROS | J55: POTREROS
E56: Mantenimiento Potreros | J56: Mantenimiento Potreros
E57: Chapeo Uniformización | F57: 0.7 | J57: Chapia Uniformización | K57: 18.67020587
E58: Fertilización | F58: 0.9 | J58: Fertilización | K58: 19.26136391
E59: Cultivada | F59: 0.9 | J59: Cultivada | K59: 19.26136391
E60: Fertilizada y Cultivada | F60: 0.9 | J60: Fertilizada y Cultivada | K60: 19.26136391
E61: Aplicación Herbicida | F61: 0.9 | J61: Aplicación Herbicida | K61: 18.48231652
E62: Aplicación Insecticida | F62: 0.9 | J62: Aplicación Insecticida | K62: 18.78052715
E63: Aplicación Fungicida | F63: 0.9 | J63: Aplicación Fungicida | K63: 18.48231652
E64: Aplicación Nematicida | F64: 0.9 | J64: Aplicación Nematicida | K64: 18.78052715
E65: Acarreo Vario (por hora) | F65: 1 | J65: Acarreo Vario (por hora) | K65: 18.418303
E66: Transporte (por hora) | F66: 1 | J66: Transporte (por hora) | K66: 18.418303
E67: ESTABLOS | J67: ESTABLOS
E68: Mantenimiento Establos | J68: Mantenimiento Establos
E69: Recolección de Estiercol (por hora) | F69: 1 | J69: Recolección de Estiercol (por hora) | K69: 18.25560415
E70: Cargado Estiercol (por hora) | F70: 1 | J70: Cargado Estiercol (por hora) | K70: 18.25560415
E71: Recolección y Cargado de Estiercol (por hora) | F71: 1 | J71: Recolección y Cargado de Estiercol (por hora) | K71: 18.25560415
E72: Distribución de Estiercol (por hora) | F72: 1 | J72: Distribución de Estiercol (por hora) | K72: 19.38555666
E73: VARIOS | J73: VARIOS
E74: Varios | J74: Varios
E75: Chapeo General | F75: 0.7 | J75: Chapia General | K75: 18.67020587
E76: Acarreos Varios (por hora) | F76: 1 | J76: Acarreos Varios (por hora) | K76: 18.418303
E77: Volteo Composteras (por hora) | F77: 1 | J77: Volteo Composteras (por hora) | K77: 18.25560415
E78: Riego Bomba | F78: 1 | J78: Riego Bomba | K78: =500/24.4527 -> 20.44763973

Sheet Costos de Ventas
H2: 24.5752
B3: Producción de semilla Certificada de Maíz | I3: Producción de semilla Certificada de Soya
B4: Estructura de costo | I4: Estructura de costo
B5: Expresado en Lempiras | I5: Expresado en Lempiras
B7: Descripción | C7: Unidad | D7: Cantidad | E7: Costo | G7: % | I7: Descripción | J7: Unidad | K7: Cantidad | L7: Costo | N7: %
E8: Unitario | F8: Total | L8: Unitario | M8: Total
B9: Fumigación | C9: QQ | D9: 1 | E9: 0.09603177187 | F9: =D9*E9 -> 0.09603177187 | G9: =F9/$F$15 -> 0.02366423335 | I9: Fumigación | J9: QQ | K9: 1 | L9: 0.09603177187 | M9: =K9*L9 -> 0.09603177187 | N9: =M9/$M$15 -> 0.02019255241
B10: Análisis de laboratorio | C10: QQ | D10: 1 | E10: 0.2034571438 | F10: 0.2034571438 | G10: 0.05013608761 | I10: Análisis de laboratorio | J10: QQ | K10: 1 | L10: 0.2034571438 | M10: 0.2034571438 | N10: =M10/$M$15 -> 0.04278083138
B11: Empaque | C11: QQ | D11: 1 | E11: 0.8138285751 | F11: 0.8138285751 | G11: 0.2005443504 | I11: Empaque | J11: QQ | K11: 1 | L11: 0.8138285751 | M11: 0.8138285751 | N11: 0.1711233255
B12: Etiqueta | C12: QQ | D12: 1 | E12: 0.7474430956 | F12: 0.7474430956 | G12: 0.1841855824 | I12: Etiqueta | J12: QQ | K12: 1 | L12: 1.445146897 | M12: =K12*L12 -> 1.445146897 | N12: 0.3038703118
B13: Registro | C13: QQ | D13: 1 | E13: 0.162765715 | F13: 0.162765715 | G13: 0.04010887009 | I13: Registro | J13: QQ | K13: 1 | L13: 0.162765715 | M13: 0.162765715 | N13: 0.0342246651
B14: Transporte por venta | C14: QQ | D14: 1 | E14: 2.034571438 | F14: 2.034571438 | G14: 0.5013608761 | I14: Transporte por venta | J14: QQ | K14: 1 | L14: 2.034571438 | M14: 2.034571438 | N14: 0.4278083138
B15: Costo total | E15: =SUM(E9:E14) -> 4.058097739 | F15: =SUM(F9:F14) -> 4.058097739 | G15: =SUM(G9:G14) -> 1 | I15: Costo total | L15: =SUM(L9:L14) -> 4.755801541 | M15: =SUM(M9:M14) -> 4.755801541 | N15: =SUM(N9:N14) -> 1

Sheet Gastos Operativos
C2: Información del Programa
C4: Producción de Semillas | E4: 24.5752 | F4: Producción en Campo | I4: Procesamiento en Planta
C7: Descripción | D7: Temporada 2022 - 2023 | F7: Descripción | G7: Temporada 2022 - 2023 | I7: Descripción | J7: Temporada 2022 - 2023
C9: Salarios y beneficios | D9: xxx | F9: Salarios y beneficios | G9: xxx | I9: Salarios y beneficios | J9: xxx
C10: Servicios profesionales (asesorías, consultorías, etc.) | D10: xxx | F10: Servicios profesionales (asesorías, consultorías, etc.) | G10: xxx | I10: Servicios profesionales (asesorías, consultorías, etc.) | J10: xxx
C11: Suministros (limpieza de oficinas, corrales, etc.) | D11: xxx | F11: Suministros (limpieza de oficinas, corrales, etc.) | G11: xxx | I11: Suministros (limpieza de oficinas, corrales, etc.) | J11: xxx
C12: Servicios públicos (luz, agua, teléfono, internet, etc.) | D12: xxx | F12: Servicios públicos (luz, agua, teléfono, internet, etc.) | G12: xxx | I12: Servicios públicos (luz, agua, teléfono, internet, etc.) | J12: xxx
C13: Mantenimiento y reparación de máquinas | D13: xxx | F13: Mantenimiento y reparación | G13: xxx | I13: Mantenimiento y reparación | J13: xxx
C14: Gastos generales | D14: xxx | F14: Gastos generales | G14: xxx | I14: Gastos generales | J14: xxx
C15: Gastos financieros | D15: 0 | F15: Gastos financieros | I15: Gastos financieros
C16: Depreciaciones | D16: xxx | F16: Depreciaciones | G16: xxx | I16: Depreciaciones | J16: xxx
C17: Higiene y Seguridad (mascarillas, cascos, calzado, etc.) | D17: xxx | F17: Higiene y Seguridad (mascarillas, cascos, calzado, etc.) | G17: xxx | I17: Higiene y Seguridad (mascarillas, cascos, calzado, etc.) | J17: xxx
C19: Gastos Operativos Totales | D19: =SUM(G19,J19) -> 27718.18744 | F19: Gastos Operativos | G19: =190740/$E$4 -> 7761.483121 | I19: Gastos Operativos | J19: =490440/$E$4 -> 19956.70432
C20: Producción Maíz + Soya (QQ Oro) | D20: ='Rendimientos & Supuestos '!$X$11 -> 6000 | F20: Producción Maíz + Soya (QQ Oro) | G20: ='Rendimientos & Supuestos '!$X$11 -> 6000 | I20: Producción Maíz + Soya (QQ Oro) | J20: ='Rendimientos & Supuestos '!$X$11 -> 6000
C21: Gastos Operativos por QQ Oro | D21: =D19/D20 -> 4.619697907 | F21: Gastos Operativos por QQ Oro | G21: =G19/G20 -> 1.29358052 | I21: Gastos Operativos por QQ Oro | J21: =J19/J20 -> 3.326117387

Sheet Presupuesto Cultivo Maíz
C3: Presupuesto Cultivo de Maíz
C4: Expresado en Dólares
C7: Cultivo: | D7: Maíz
C8: Área (Ha) | D8: ='Rendimientos & Supuestos '!Z8 -> 82.55933953 | U8: ANÁLISIS DEL PUNTO DE EQUILIBRIO - Producción de Semilla de Maíz
U10: 2. ENFOQUE GRÁFICO
C11: Actividad | D11: Semana | I11: Unidad | J11: Cantidad / Ha | K11: Àrea de siembra (Ha) | L11: Cantidad Total | M11: Costo / Unidad ($) | N11: Costo Total ($) | O11: % del Costo
U12: Àrea (Ha) | V12: Producción - Àrea * Rendimiento promedio / Ha | W12: Ingresos Totales - IT = P * Producción | X12: Costos Fijos - CF | Y12: Costos Variables - CV | Z12: Costos Totales CT = CF + CV | AA12: Utilidad = IT - CT
C13: Preparación de Suelo | R13: Chapeo | U13: 0 | V13: =U13*$N$102 -> 0 | W13: =$N$111*V13 -> 0 | X13: =$N$105 -> 18478.79163 | Y13: =$D$128*V13 -> 0 | Z13: =X13+Y13 -> 18478.79163 | AA13: =W13-Z13 -> -18478.79163
C14: Chapeo | D14: -4 | I14: Hr | J14: =S17 -> 1.428571429 | K14: =$D$8 -> 82.55933953 | L14: =J14*K14 -> 117.9419136 | M14: ='Px Maquinaria'!K13 -> 27.71432194 | N14: =L14*M14 -> 3268.680163 | O14: =N14/$N$107 -> 0.01456352775 | R14: Area (ha) | S14: Tiempo (Hr) | U14: 1 | V14: =U14*$N$102 -> 48.45 | W14: =$N$111*V14 -> 3639.564 | X14: =$N$105 -> 18478.79163 | Y14: =$D$128*V14 -> 2494.740063 | Z14: 20973.53169 | AA14: =W14-Z14 -> -17333.96769
C15: Arado | D15: -3 | I15: Hr | J15: =S22 -> 2.222222222 | K15: =$D$8 -> 82.55933953 | L15: =J15*K15 -> 183.4651989 | M15: ='Px Maquinaria'!K16 -> 28.9023298 | N15: =L15*M15 -> 5302.571687 | O15: 0.02362548371 | R15: ='Px Maquinaria'!F13 -> 0.7 | S15: 1 | U15: 2 | V15: =U15*$N$102 -> 96.9 | W15: =$N$111*V15 -> 7279.128 | X15: =$N$105 -> 18478.79163 | Y15: =$D$128*V15 -> 4989.480126 | Z15: 23468.27175 | AA15: =W15-Z15 -> -16189.14375
C16: Rastra pesada | D16: -3 | I16: Hr | J16: =1/'Px Maquinaria'!F14 -> 1.428571429 | K16: 82.55933953 | L16: 117.9419136 | M16: ='Px Maquinaria'!K14 -> 29.99832329 | N16: 3538.059654 | O16: 0.01576374175 | R16: 1 | S16: X | U16: 3 | V16: 145.35 | W16: 10918.692 | X16: 18478.79163 | Y16: 7484.220189 | Z16: 25963.01182 | AA16: -15044.31982
C17: Rastra liviana (2) | D17: 0 | I17: Hr | J17: =(1/'Px Maquinaria'!F17)*2 -> 2.666666667 | K17: 82.55933953 | L17: 220.1582387 | M17: ='Px Maquinaria'!K17 -> 30.02735894 | N17: 6610.770458 | O17: 0.02945413263 | S17: =(S15*R16)/R15 -> 1.428571429 | U17: 4 | V17: 193.8 | W17: 14558.256 | X17: 18478.79163 | Y17: 9978.960253 | Z17: 28457.75188 | AA17: -13899.49588
C18: Siembra | D18: 0 | I18: Hr | J18: =1/'Px Maquinaria'!F26 -> 1.111111111 | K18: 82.55933953 | L18: 91.73259947 | M18: ='Px Maquinaria'!K26 -> 29.65807457 | N18: 2720.612276 | O18: 0.01212162414 | R18: Arado | U18: 5 | V18: 242.25 | W18: 18197.82 | X18: 18478.79163 | Y18: 12473.70032 | Z18: 30952.49194 | AA18: -12754.67194
C19: Aplicación Herbicida | D19: 1 | I19: Hr | J19: =1/'Px Maquinaria'!F22 -> 1.111111111 | K19: 82.55933953 | L19: 91.73259947 | M19: ='Px Maquinaria'!K22 -> 24.88068802 | N19: =L19*M19 -> 2282.370189 | O19: 0.01016904681 | R19: Area (ha) | S19: Tiempo (Hr) | U19: 6 | V19: 290.7 | W19: 21837.384 | X19: 18478.79163 | Y19: 14968.44038 | Z19: 33447.23201 | AA19: -11609.84801
C20: Aplicación Insecticida/fungicida (2 + 2) | D20: 3 | E20: 5 | F20: 7 | G20: 9 | I20: Hr | J20: =(1/'Px Maquinaria'!F23)*4 -> 4.444444444 | K20: 82.55933953 | L20: 366.9303979 | M20: ='Px Maquinaria'!K23 -> 24.88068802 | N20: =L20*M20 -> 9129.480756 | O20: 0.04067618724 | R20: ='Px Maquinaria'!F16 -> 0.45 | S20: 1 | U20: 7 | V20: 339.15 | W20: 25476.948 | X20: 18478.79163 | Y20: 17463.18044 | Z20: 35941.97207 | AA20: -10465.02407
C21: Aplicación foliar | D21: 4 | I21: Hr | J21: =1/'Px Maquinaria'!F24 -> 1.111111111 | K21: 82.55933953 | L21: 91.73259947 | M21: ='Px Maquinaria'!K24 -> 25.15427744 | N21: 2307.467258 | O21: 0.01028086621 | R21: 1 | S21: X | U21: 8 | V21: 387.6 | W21: 29116.512 | X21: 18478.79163 | Y21: 19957.92051 | Z21: 38436.71213 | AA21: -9320.200132
C22: Cultivada | D22: 3 | I22: Hr | J22: =1/'Px Maquinaria'!F32 -> 1.111111111 | K22: 82.55933953 | L22: =J22*K22 -> 91.73259947 | M22: ='Px Maquinaria'!K32 -> 27.97482487 | N22: 2566.203405 | O22: 0.01143365904 | S22: =(S20*R21)/R20 -> 2.222222222 | U22: 9 | V22: 436.05 | W22: 32756.076 | X22: 18478.79163 | Y22: 22452.66057 | Z22: 40931.4522 | AA22: -8175.376195
C23: Acarreo de Cosecha | D23: 17 | I23: Hr | J23: 0 | K23: 82.55933953 | L23: 0 | M23: ='Px Maquinaria'!K47 -> 26.71034283 | N23: 0 | O23: 0 | U23: 10 | V23: 484.5 | W23: 36395.64 | X23: 18478.79163 | Y23: 24947.40063 | Z23: 43426.19226 | AA23: -7030.552259
C24: Acarreo de Agua (5) | D24: 1 | E24: 3 | F24: 5 | G24: 7 | H24: 9 | I24: Hr | J24: =(1/'Px Maquinaria'!F47)*5 -> 5 | K24: 82.55933953 | L24: 412.7966976 | M24: ='Px Maquinaria'!K47 -> 26.71034283 | N24: 11025.94131 | O24: 0.04912582274 | U24: 11 | V24: 532.95 | W24: 40035.204 | X24: 18478.79163 | Y24: 27442.14069 | Z24: 45920.93232 | AA24: -5885.728322
C25: Sub Total (Preparación de suelo) | N25: =SUM(N14:N24) -> 48752.15716 | O25: 0.217214092 | U25: 12 | V25: 581.4 | W25: 43674.768 | X25: 18478.79163 | Y25: 29936.88076 | Z25: 48415.67238 | AA25: -4740.904385
U26: 13 | V26: 629.85 | W26: 47314.332 | X26: 18478.79163 | Y26: 32431.62082 | Z26: 50910.41245 | AA26: -3596.080448
U27: 14 | V27: 678.3 | W27: 50953.896 | X27: 18478.79163 | Y27: 34926.36088 | Z27: 53405.15251 | AA27: -2451.256511
C28: Siembra | U28: 15 | V28: 726.75 | W28: 54593.46 | X28: 18478.79163 | Y28: 37421.10095 | Z28: =X28+Y28 -> 55899.89257 | AA28: -1306.432574
C29: Semilla | D29: 0 | I29: QQ | J29: ='Rendimientos & Supuestos '!D8 -> 0.6 | K29: =$D$8 -> 82.55933953 | L29: =J29*K29 -> 49.53560372 | M29: ='Rendimientos & Supuestos '!E8 -> 153.357298 | N29: =L29*M29 -> 7596.646339 | O29: =N29/$N$107 -> 0.03384667947 | U29: 16 | V29: 775.2 | W29: 58233.024 | X29: 18478.79163 | Y29: 39915.84101 | Z29: 58394.63264 | AA29: -161.6086373
C30: Tratador Gaucho | D30: 0 | I30: Gr | J30: ='Px Insumos'!U8 -> 0.1 | K30: 82.55933953 | L30: =J30*K30 -> 8.255933953 | M30: ='Px Insumos'!V8 -> 0.2302404233 | N30: 1.900849728 | O30: 8.469191353e-06 | U30: 17 | V30: 823.65 | W30: 61872.588 | X30: 18478.79163 | Y30: 42410.58107 | Z30: 60889.3727 | AA30: 983.2152995
C31: Protector Scort | D31: 0 | I31: Gr | J31: 0 | K31: 82.55933953 | L31: 0 | M31: ='Px Insumos'!V18 -> 0.5320890215 | N31: 0 | O31: 0 | U31: 18 | V31: 872.1 | W31: 65512.152 | X31: 18478.79163 | Y31: 44905.32114 | Z31: 63384.11276 | AA31: 2128.039236
C32: 12-24-12 | D32: 0 | I32: QQ | J32: ='Px Insumos'!G9 -> 2 | K32: 82.55933953 | L32: 165.1186791 | M32: ='Px Insumos'!H9 -> 18.97540967 | N32: 3133.194579 | O32: 0.01395987491 | U32: 19 | V32: 920.55 | W32: 69151.716 | X32: 18478.79163 | Y32: 47400.0612 | Z32: 65878.85283 | AA32: 3272.863173
C33: MO Siembra | D33: 0 | I33: Jornal/Hr | J33: =J18 -> 1.111111111 | K33: 82.55933953 | L33: 91.73259947 | M33: ='Px Insumos'!O28/8 -> 2.030952615 | N33: 186.3045627 | O33: 0.0008300756069 | U33: 20 | V33: 969 | W33: 72791.28 | X33: 18478.79163 | Y33: 49894.80126 | Z33: 68373.59289 | AA33: 4417.68711
C34: MO Fertilización | D34: 0 | I34: Jornal/Hr | J34: =J19 -> 1.111111111 | K34: 82.55933953 | L34: 91.73259947 | M34: ='Px Insumos'!O28/8 -> 2.030952615 | N34: 186.3045627 | O34: 0.0008300756069 | U34: 21 | V34: 1017.45 | W34: 76430.844 | X34: 18478.79163 | Y34: 52389.54133 | Z34: 70868.33295 | AA34: 5562.511047
C35: Sub Total (Siembra) | N35: =SUM(N29:N34) -> 11104.35089 | O35: 0.04947517479 | U35: 22 | V35: 1065.9 | W35: 80070.408 | X35: 18478.79163 | Y35: 54884.28139 | Z35: 73363.07302 | AA35: 6707.334984
U36: 23 | V36: 1114.35 | W36: 83709.972 | X36: 18478.79163 | Y36: 57379.02145 | Z36: 75857.81308 | AA36: 7852.158921
U37: 24 | V37: 1162.8 | W37: 87349.536 | X37: 18478.79163 | Y37: 59873.76152 | Z37: 78352.55314 | AA37: 8996.982858
C38: Control de Malezas | U38: 25 | V38: 1211.25 | W38: 90989.1 | X38: 18478.79163 | Y38: 62368.50158 | Z38: 80847.29321 | AA38: 10141.80679
C39: Prowl | D39: 1 | I39: Lt | J39: ='Px Insumos'!N18 -> 3 | K39: =$D$8 -> 82.55933953 | L39: =J39*K39 -> 247.6780186 | M39: ='Px Insumos'!O18 -> 14.31334781 | N39: =L39*M39 -> 3545.101625 | O39: =N39/$N$107 -> 0.01579511709 | U39: 26 | V39: 1259.7 | W39: 94628.664 | X39: 18478.79163 | Y39: 64863.24164 | Z39: 83342.03327 | AA39: 11286.63073
C40: Gesaprim 90 | D40: 1 | I40: Kg | J40: ='Px Insumos'!N19 -> 2 | K40: 82.55933953 | L40: 165.1186791 | M40: ='Px Insumos'!O19 -> 8.588008686 | N40: =L40*M40 -> 1418.04065 | O40: 0.006318046835 | U40: 27 | V40: 1308.15 | W40: 98268.228 | X40: 18478.79163 | Y40: 67357.9817 | Z40: 85836.77333 | AA40: 12431.45467
C41: Convey | D41: 5 | I41: Lt | J41: ='Px Insumos'!N21 -> 0.1 | K41: 82.55933953 | L41: 8.255933953 | M41: ='Px Insumos'!O21 -> 536.9550193 | N41: =L41*M41 -> 4433.065175 | O41: 0.01975141784 | U41: 28 | V41: 1356.6 | W41: 101907.792 | X41: 18478.79163 | Y41: 69852.72177 | Z41: 88331.51339 | AA41: 13576.27861
C42: MO Herbicida mecanizada | D42: 1 | I42: Jornal/Hr | J42: =J19 -> 1.111111111 | K42: 82.55933953 | L42: 91.73259947 | M42: ='Px Insumos'!O29/8 -> 2.187179739 | N42: 200.635683 | O42: 0.0008939275766 | U42: 29 | V42: 1405.05 | W42: 105547.356 | X42: 18478.79163 | Y42: 72347.46183 | Z42: 90826.25346 | AA42: 14721.10254
C43: MO Convey | D43: 5 | I43: Jornal/Hr | J43: =J19 -> 1.111111111 | K43: 82.55933953 | L43: 91.73259947 | M43: ='Px Insumos'!O28/8 -> 2.030952615 | N43: 186.3045627 | O43: 0.0008300756069 | U43: 30 | V43: 1453.5 | W43: 109186.92 | X43: 18478.79163 | Y43: 74842.20189 | Z43: 93320.99352 | AA43: 15865.92648
C44: Sub Total (Control de Malezas) | N44: =SUM(N39:N43) -> 9783.147695 | O44: 0.04358858495 | U44: 31 | V44: 1501.95 | W44: 112826.484 | X44: 18478.79163 | Y44: 77336.94196 | Z44: 95815.73358 | AA44: 17010.75042
U45: 32 | V45: =U45*$N$102 -> 1550.4 | W45: 116466.048 | X45: 18478.79163 | Y45: 79831.68202 | Z45: 98310.47365 | AA45: 18155.57435
C47: Control de Plagas
C48: Curyom 55EC | D48: 3 | I48: Lt | J48: ='Px Insumos'!U21 -> 0.25 | K48: =$D$8 -> 82.55933953 | L48: =J48*K48 -> 20.63983488 | M48: ='Px Insumos'!V21 -> 36.39679872 | N48: =L48*M48 -> 751.2239157 | O48: =N48/$N$107 -> 0.003347060526
C49: Mancozeb 80WP | D49: 5 | I49: Kg | J49: ='Px Insumos'!G29 -> 0.7 | K49: 82.55933953 | L49: 57.79153767 | M49: ='Px Insumos'!H29 -> 4.089527946 | N49: 236.3401083 | O49: 0.001053007806
C50: Nativo | D50: 9 | I50: Kg | J50: ='Px Insumos'!G31 -> 0.15 | K50: 82.55933953 | L50: 12.38390093 | M50: ='Px Insumos'!H31 -> 148.4498644 | N50: 1838.388414 | O50: 0.008190896433
C51: Proclaim 5SG | D51: 7 | I51: Kg | J51: ='Px Insumos'!U23 -> 0.1 | K51: 82.55933953 | L51: 8.255933953 | M51: ='Px Insumos'!V23 -> 222.879273 | N51: 1840.076558 | O51: 0.008198417917
C52: MO Aplicaciones | D52: 3 | E52: 5 | F52: 7 | G52: 9 | I52: Jornal/Hr | J52: =J20*4 -> 17.77777778 | K52: 82.55933953 | L52: 1467.721592 | M52: ='Px Insumos'!O28/8 -> 2.030952615 | N52: 2980.873004 | O52: 0.01328120971
C53: Sub Total (Control de Plagas) | N53: =SUM(N48:N52) -> 7646.902 | O53: =N53/$N$107 -> 0.03407059239
C56: Fertilización
C57: Urea | D57: 4 | I57: QQ | J57: ='Px Insumos'!G18 -> 3 | K57: =$D$8 -> 82.55933953 | L57: =J57*K57 -> 247.6780186 | M57: ='Px Insumos'!H18 -> 17.29870321 | N57: =L57*M57 -> 4284.508535 | O57: =N57/$N$107 -> 0.01908952722
C58: Kelpak | D58: 4 | I58: Lt | J58: ='Px Insumos'!G19*0 -> 0 | K58: 82.55933953 | L58: =J58*K58 -> 0 | M58: ='Px Insumos'!H19 -> 12.67753663 | N58: =L58*M58 -> 0 | O58: 0
C59: Bayfolan | D59: 1 | I59: Lt | J59: ='Px Insumos'!G20 -> 2 | K59: 82.55933953 | L59: 165.1186791 | M59: ='Px Insumos'!H20 -> 6.134291919 | N59: =L59*M59 -> 1012.886179 | O59: 0.004512890597
C60: MO Urea | D60: 1 | I60: hr | J60: =J22 -> 1.111111111 | K60: 82.55933953 | L60: 91.73259947 | M60: ='Px Insumos'!O28/8 -> 2.030952615 | N60: =L60*M60 -> 186.3045627 | O60: 0.0008300756069
C61: MO foliar | D61: 1 | I61: hr | J61: =J21 -> 1.111111111 | K61: 82.55933953 | L61: 91.73259947 | M61: ='Px Insumos'!O29/8 -> 2.187179739 | N61: =L61*M61 -> 200.635683 | O61: 0.0008939275766
C62: Sub Total (Fetilización) | N62: =SUM(N57:N61) -> 5684.334959 | O62: =N62/$N$107 -> 0.025326421
C65: Riego
C66: MO Instalar Sistema Riego | D66: -1 | I66: Jornal | J66: 5 | K66: =$D$8 -> 82.55933953 | L66: =J66*K66 -> 412.7966976 | M66: ='Px Insumos'!O28 -> 16.24762092 | N66: =L66*M66 -> 6706.964259 | O66: =N66/$N$107 -> 0.02988272185
C67: MO Recoger Cinta | D67: 17 | I67: Jornal | J67: 4 | K67: 82.55933953 | L67: 330.2373581 | M67: ='Px Insumos'!O28 -> 16.24762092 | N67: 5365.571407 | O67: 0.02390617748
C68: Cinta | D68: -3 | I68: Rollo | J68: 0 | K68: 82.55933953 | L68: 0 | M68: ='Px Insumos'!V33 -> 143.1334781 | N68: 0 | O68: 0
C69: MO Regador | D69: 1 | I69: Jornal | J69: =100/7 -> 14.28571429 | K69: 82.55933953 | L69: 1179.419136 | M69: ='Px Insumos'!O28 -> 16.24762092 | N69: 19162.75503 | O69: 0.08537920528
C70: Bomba de riego | D70: 1 | I70: Hr | J70: 20 | K70: 82.55933953 | L70: 1651.186791 | M70: ='Px Maquinaria'!K78 -> 20.44763973 | N70: 33762.87262 | O70: 0.1504296866
C71: Sub Total (Riego) | N71: =SUM(N66:N70) -> 64998.16331 | O71: =N71/$N$107 -> 0.2895977912
C74: Cosecha
C75: MO Supervisor de Cosecha | D75: 17 | I75: Jornal/Día | J75: 1 | K75: =$D$8 -> 82.55933953 | L75: =J75*K75 -> 82.55933953 | M75: ='Px Insumos'!O30 -> 19.4971451 | N75: =L75*M75 -> 1609.671422 | O75: =N75/$N$107 -> 0.007171853243
C76: MO Corteros | D76: 17 | I76: Jornal/Día | J76: 16 | K76: 82.55933953 | L76: =J76*K76 -> 1320.949432 | M76: ='Px Insumos'!O28 -> 16.24762092 | N76: 21462.28563 | O76: 0.09562470991
C77: Sacos | D77: 17 | I77: Unidad | J77: ='Rendimientos & Supuestos '!F8/0.6 -> 166.6666667 | K77: 82.55933953 | L77: 13759.88992 | M77: ='Px Insumos'!V29 -> 0.2862669562 | N77: 3939.001805 | O77: 0.0175501301
C78: Transporte | D78: 17 | I78: Unidad | J78: =J77/'Px Insumos'!V31 -> 0.5208333333 | K78: 82.55933953 | L78: 42.999656 | M78: ='Px Insumos'!V30 -> 73.61150302 | N78: =L78*M78 -> 3165.269308 | O78: 0.01410278311
C79: Sub Total (Cosecha) | N79: =SUM(N75:N78) -> 30176.22816 | O79: =N79/$N$107 -> 0.1344494764
C82: Mantenimiento
C83: Raleo | D83: 2 | I83: Jornal/Día | J83: 0 | K83: =$D$8 -> 82.55933953 | L83: =J83*K83 -> 0 | M83: ='Px Insumos'!$O$28 -> 16.24762092 | N83: =L83*M83 -> 0 | O83: =N83/$N$107 -> 0
C84: Limpieza manual de malezas nocivas | D84: 4 | I84: Jornal/Día | J84: 0 | K84: 82.55933953 | L84: 0 | M84: ='Px Insumos'!$O$28 -> 16.24762092 | N84: 0 | O84: 0
C85: Descañuele | D85: 6 | E85: 10 | I85: Jornal/Día | J85: 5 | K85: 82.55933953 | L85: 412.7966976 | M85: ='Px Insumos'!$O$28 -> 16.24762092 | N85: 6706.964259 | O85: 0.02988272185
C86: Despanojado | D86: 8 | I86: Jornal/Día | J86: 0 | K86: 82.55933953 | L86: 0 | M86: ='Px Insumos'!$O$28 -> 16.24762092 | N86: 0 | O86: 0
C87: Eliminación de machos | D87: 17 | I87: Jornal/Día | J87: 0 | K87: 82.55933953 | L87: 0 | M87: ='Px Insumos'!$O$28 -> 16.24762092 | N87: 0 | O87: =N87/$N$107 -> 0
C88: Eliminación de plantas enfermas | D88: 1 | I88: Jornal/Día | J88: 0 | K88: 82.55933953 | L88: 0 | M88: ='Px Insumos'!$O$28 -> 16.24762092 | N88: 0 | O88: =N88/$N$107 -> 0
C89: Carga y descarga de cosecha | D89: 17 | I89: Jornal/Día | J89: 1 | K89: 82.55933953 | L89: 82.55933953 | M89: ='Px Insumos'!$O$28 -> 16.24762092 | N89: 1341.392852 | O89: 0.005976544369
C90: Sub Total (Mantenimiento) | N90: =SUM(N83:N89) -> 8048.357111 | O90: =N90/$N$107 -> 0.03585926622
C93: Destrucción
C94: Rastra pesada | D94: 17 | I94: Hr | J94: =1/'Px Maquinaria'!F14 -> 1.428571429 | K94: =$D$8 -> 82.55933953 | L94: =J94*K94 -> 117.9419136 | M94: ='Px Maquinaria'!K14 -> 29.99832329 | N94: =L94*M94 -> 3538.059654 | O94: =N94/$N$107 -> 0.01576374175
C95: Sub Total (Destrucción) | N95: =SUM(N94) -> 3538.059654 | O95: =N95/$N$107 -> 0.01576374175
K97: Total Costos de Producción en Campo | N97: =N25+N35+N44+N53+N62+N71+N79+N90+N95 -> 189731.7009 | O97: =N97/$N$107 -> 0.8453451406 | T97: =N97*24.5 -> 4648426.673
K98: Costos de Ventas Totales ($) | N98: =N103*'Costos de Ventas'!F15 -> 16232.39096 | O98: =N98/$N$107 -> 0.07232303694 | T98: 397693.5785
K99: Costos Variables Totales ($) | N99: =N97+N98 -> 205964.0919 | O99: =N99/$N$107 -> 0.9176681776 | T99: =N99*24.5 -> 5046120.252
K102: Rendimiento promedio en QQ Oro/Ha | N102: ='Rendimientos & Supuestos '!G8 -> 48.45
K103: Producción Total en QQ Oro | N103: =N102*D8 -> 4000
K104: Gastos Operativos por QQ Oro | N104: ='Gastos Operativos'!D21 -> 4.619697907
K105: Costos Fijos Totales ($) | N105: =N103*N104 -> 18478.79163 | O105: =N105/$N$107 -> 0.08233182241 | T105: =N105*24.5 -> 452730.3949
K107: Costos Totales ($) | N107: =N99+N105 -> 224442.8835 | O107: =N107/$N$107 -> 1 | T107: =N107*24.5 -> 5498850.646
K109: Costo de Producción/ QQ Oro ($) | N109: =N107/N103 -> 56.11072088
K111: Precio de venta por QQ Oro ($) | N111: ='Rendimientos & Supuestos '!I8 -> 75.12
K112: Ingresos Totales ($) | N112: =N111*N103 -> 300480
K114: Utilidad Operativa ($) | N114: =N112-N107 -> 76037.11647
B120: ANÁLISIS DEL PUNTO DE EQUILIBRIO - Un solo Producto
B123: 1. ENFOQUE ALGEBRAICO | H123: c) Área en el Punto de Equilibrio
B125: Costos Fijos Totales (CF) | D125: =N105 -> 18478.79163 | E125: =_xlfn.FORMULATEXT(D125) -> =N105 | H125: Área Mínima de Siembra (Ha) = | J125: =D134/N102 -> 16.14116462
B126: Costos Variables Totales (CV) | D126: =N99 -> 205964.0919 | E126: =_xlfn.FORMULATEXT(D126) -> =N99 | J126: =_xlfn.FORMULATEXT(J125) -> =D134/N102
B127: Producción Total en QQ Oro | D127: =N103 -> 4000 | E127: =N103
B128: Costo Variable Unitario (CVU) | D128: =D126/D127 -> 51.49102297 | E128: =D126/D127
B129: Precio por QQ Oro de Maíz (P) | D129: =N111 -> 75.12 | E129: =N111
C132: a) Punto de Equilibrio Físico | F132: b) Punto de Equilibrio Monetario
C134: PEx = CF/ (P - CVU) = | D134: =D125/(D129-D128) -> 782.0394259 | F134: PE$ = P * Pex = | I134: =D129*D134 -> 58746.80167
D137: =_xlfn.FORMULATEXT(D134) -> =D125/(D129-D128) | I137: =_xlfn.FORMULATEXT(I134) -> =D129*D134
C153: Punto de Equilibrio
C154: Punto de Equilibrio Físico (QQ Oro de Maíz) = | D154: =D134 -> 782.0394259
C155: Punto de Equilibrio Monetario ($) = | D155: =I134 -> 58746.80167
C156: Área Mínima de Siembra (Ha) = | D156: =J125 -> 16.14116462

Sheet Presupuesto Cultivo Soya
C3: Presupuesto Cultivo de Soya
C4: Expresado en Dólares
C7: Cultivo: | D7: Soya
C8: Área (Ha) | D8: ='Rendimientos & Supuestos '!Z9 -> 92.39689084
C11: Actividad | D11: Semana | I11: Unidad | J11: Cantidad / Ha | K11: Àrea de siembra (Ha) | L11: Cantidad Total | M11: Costo / Unidad ($) | N11: Costo Total ($) | O11: % del Costo
C13: Preparación de Suelo | S13: Chapeo
C14: Chapeo | D14: -4 | I14: Hr | J14: =T17 -> 1.428571429 | K14: =$D$8 -> 92.39689084 | L14: =J14*K14 -> 131.9955583 | M14: ='Px Maquinaria'!K13 -> 27.71432194 | N14: =L14*M14 -> 3658.167398 | O14: =N14/$N$108 -> 0.01623789256 | S14: Area (ha) | T14: Tiempo (Hr)
C15: Arado | D15: -3 | I15: Hr | J15: =T22 -> 2.222222222 | K15: =$D$8 -> 92.39689084 | L15: =J15*K15 -> 205.3264241 | M15: ='Px Maquinaria'!K16 -> 28.9023298 | N15: =L15*M15 -> 5934.412027 | O15: =N15/$N$108 -> 0.02634169911 | S15: ='Px Maquinaria'!F13 -> 0.7 | T15: 1
C16: Rastra pesada | D16: -3 | I16: Hr | J16: =1/'Px Maquinaria'!F14 -> 1.428571429 | K16: 92.39689084 | L16: 131.9955583 | M16: ='Px Maquinaria'!K14 -> 29.99832329 | N16: 3959.645433 | O16: 0.01757609483 | S16: 1 | T16: X
C17: Rastra liviana (2) | D17: 0 | I17: Hr | J17: =(1/'Px Maquinaria'!F17)*2 -> 2.666666667 | K17: 92.39689084 | L17: 246.3917089 | M17: ='Px Maquinaria'!K17 -> 30.02735894 | N17: 7398.492284 | O17: 0.0328404662 | T17: =(T15*S16)/S15 -> 1.428571429
C18: Siembra | D18: 0 | I18: Hr | J18: =1/'Px Maquinaria'!F26 -> 1.111111111 | K18: 92.39689084 | L18: 102.663212 | M18: ='Px Maquinaria'!K26 -> 29.65807457 | N18: 3044.793198 | O18: 0.01351524396 | S18: Arado
C19: Aplicación Herbicida | D19: 1 | I19: Hr | J19: =1/'Px Maquinaria'!F22 -> 1.111111111 | K19: 92.39689084 | L19: 102.663212 | M19: ='Px Maquinaria'!K22 -> 24.88068802 | N19: 2554.33135 | O19: 0.01133817934 | S19: Area (ha) | T19: Tiempo (Hr)
C20: Aplicación Insecticida/fungicida (2 + 2) | D20: 3 | E20: 5 | F20: 7 | G20: 9 | H20: 10 | I20: Hr | J20: =(1/'Px Maquinaria'!F23)*5 -> 5.555555556 | K20: 92.39689084 | L20: 513.3160602 | M20: ='Px Maquinaria'!K23 -> 24.88068802 | N20: 12771.65675 | O20: 0.05669089671 | S20: ='Px Maquinaria'!F16 -> 0.45 | T20: 1
C21: Aplicación foliar | D21: 4 | I21: Hr | J21: =1/'Px Maquinaria'!F24 -> 1.111111111 | K21: 92.39689084 | L21: 102.663212 | M21: ='Px Maquinaria'!K24 -> 25.15427744 | N21: 2582.418919 | O21: 0.01146285459 | S21: 1 | T21: X
C22: Cultivada | D22: 3 | I22: Hr | J22: =1/'Px Maquinaria'!F32*0 -> 0 | K22: 92.39689084 | L22: =J22*K22 -> 0 | M22: ='Px Maquinaria'!K32 -> 27.97482487 | N22: =L22*M22 -> 0 | O22: 0 | T22: =(T20*S21)/S20 -> 2.222222222
C23: Acarreo de Cosecha | D23: 17 | I23: Hr | J23: 0 | K23: 92.39689084 | L23: 0 | M23: ='Px Maquinaria'!K47 -> 26.71034283 | N23: =L23*M23 -> 0 | O23: 0
C24: Acarreo de Agua (5) | D24: 1 | E24: 3 | F24: 5 | G24: 7 | H24: 9 | I24: Hr | J24: =(1/'Px Maquinaria'!F47)*5 -> 5 | K24: 92.39689084 | L24: =J24*K24 -> 461.9844542 | M24: ='Px Maquinaria'!K47 -> 26.71034283 | N24: =L24*M24 -> 12339.76315 | O24: 0.05477380514
C25: Trilladora mecánica | D25: 10 | I25: Hr | J25: ='Rendimientos & Supuestos '!F9 -> 35 | K25: =$D$8 -> 92.39689084 | L25: =J25*K25 -> 3233.89118 | M25: 1.017285719 | N25: =L25*M25 -> 3289.791314 | O25: =N25/$N$108 -> 0.01460274287
C26: Sub Total (Preparación de suelo) | N26: =SUM(N14:N25) -> 57533.47183 | O26: =N26/$N$108 -> 0.2553798753
C29: Siembra
C30: Semilla | D30: 0 | I30: QQ | J30: ='Rendimientos & Supuestos '!D9 -> 1 | K30: =$D$8 -> 92.39689084 | L30: =J30*K30 -> 92.39689084 | M30: ='Rendimientos & Supuestos '!E8 -> 153.357298 | N30: =L30*M30 -> 14169.73752 | O30: =N30/$N$108 -> 0.06289670493 | Q30: =SUM(M30:M33) -> 173.0950371
C31: Tratador Gaucho | D31: 0 | I31: Gr | J31: ='Px Insumos'!U8 -> 0.1 | K31: 92.39689084 | L31: =J31*K31 -> 9.239689084 | M31: ='Px Insumos'!V8 -> 0.2302404233 | N31: 2.127349926 | O31: 9.442891967e-06
C32: Protector Scort | D32: 0 | I32: Gr | J32: 0 | K32: 92.39689084 | L32: 0 | M32: ='Px Insumos'!V18 -> 0.5320890215 | N32: 0 | O32: 0
C33: 12-24-12 | D33: 0 | I33: QQ | J33: ='Px Insumos'!G9-1 -> 1 | K33: 92.39689084 | L33: 92.39689084 | M33: ='Px Insumos'!H9 -> 18.97540967 | N33: 1753.268856 | O33: 0.007782418957
C34: MO Siembra | D34: 0 | I34: Jornal | J34: =J18 -> 1.111111111 | K34: 92.39689084 | L34: 102.663212 | M34: ='Px Insumos'!O28 -> 16.24762092 | N34: 1668.032952 | O34: 0.007404073379
C35: MO Fertilización | D35: 0 | I35: Jornal | J35: =J19 -> 1.111111111 | K35: 92.39689084 | L35: 102.663212 | M35: ='Px Insumos'!O28 -> 16.24762092 | N35: =L35*M35 -> 1668.032952 | O35: 0.007404073379
C36: Sub Total (Siembra) | N36: =SUM(N30:N35) -> 19261.19963 | O36: =N36/$N$108 -> 0.08549671354
C39: Control de Malezas
C40: Flex | D40: 1 | I40: Lt | J40: ='Px Insumos'!N11 -> 0.6 | K40: =$D$8 -> 92.39689084 | L40: =J40*K40 -> 55.43813451 | M40: ='Px Insumos'!O11 -> 28.42221922 | N40: =L40*M40 -> 1575.674812 | O40: =N40/$N$108 -> 0.006994113588
C41: Fusilade | D41: 1 | I41: Kg | J41: ='Px Insumos'!N12 -> 1 | K41: 92.39689084 | L41: 92.39689084 | M41: ='Px Insumos'!O12 -> 27.35894196 | N41: =L41*M41 -> 2527.881174 | O41: 0.01122077216
C42: Prowl | D42: 5 | I42: Lt | J42: 0 | K42: 92.39689084 | L42: 0 | M42: ='Px Insumos'!O18 -> 14.31334781 | N42: =L42*M42 -> 0 | O42: 0
C43: MO Herbicida | D43: 1 | I43: Hr | J43: =J19 -> 1.111111111 | K43: 92.39689084 | L43: 102.663212 | M43: ='Px Insumos'!O29/8 -> 2.187179739 | N43: 224.5428973 | O43: 0.0009967021857
C44: MO Flex con Fusilade | D44: 5 | I44: Hr | J44: =J19 -> 1.111111111 | K44: 92.39689084 | L44: 102.663212 | M44: ='Px Insumos'!O28/8 -> 2.030952615 | N44: 208.5041189 | O44: 0.0009255091724
C45: Sub Total (Control de Malezas) | N45: =SUM(N40:N44) -> 4536.603002 | O45: =N45/$N$108 -> 0.02013709711
C48: Control de Plagas
C49: Connet | D49: 3 | I49: Lt | J49: ='Px Insumos'!U15 -> 0.45 | K49: =$D$8 -> 92.39689084 | L49: =J49*K49 -> 41.57860088 | M49: ='Px Insumos'!V15 -> 29.15833425 | N49: =L49*M49 -> 1212.362742 | O49: =N49/$N$108 -> 0.005381442074
C50: Nativo | D50: 5 | I50: Kg | J50: ='Px Insumos'!G31 -> 0.15 | K50: 92.39689084 | L50: 13.85953363 | M50: ='Px Insumos'!H31 -> 148.4498644 | N50: =L50*M50 -> 2057.445888 | O50: 0.009132601556
C51: Amistar (2) | D51: 7 | F51: 10 | I51: Kg | J51: ='Px Insumos'!G34*2 -> 0.24 | K51: 92.39689084 | L51: 22.1752538 | M51: ='Px Insumos'!H34 -> 205.2943029 | N51: 4552.453271 | O51: 0.02020745336
C52: Engeo | D52: 9 | I52: Kg | J52: ='Px Insumos'!U10 -> 0.3 | K52: 92.39689084 | L52: 27.71906725 | M52: ='Px Insumos'!V10 -> 82.36309283 | N52: 2283.028109 | O52: 0.0101339171
C53: MO Aplicaciones | D53: 3 | E53: 5 | F53: 7 | G53: 9 | I53: Jornal/Hr | J53: =J20 -> 5.555555556 | K53: 92.39689084 | L53: 513.3160602 | M53: ='Px Insumos'!O28 -> 16.24762092 | N53: 8340.164758 | O53: 0.0370203669
C54: Sub Total (Control de Plagas) | N54: =SUM(N49:N53) -> 18445.45477 | O54: =N54/$N$108 -> 0.08187578098
C57: Fertilización
C58: Urea | D58: 4 | I58: QQ | J58: ='Px Insumos'!G18 -> 3 | K58: =$D$8 -> 92.39689084 | L58: =J58*K58 -> 277.1906725 | M58: ='Px Insumos'!H18 -> 17.29870321 | N58: =L58*M58 -> 4795.039177 | O58: =N58/$N$108 -> 0.02128424495
C59: KCL | D59: 4 | I59: QQ | J59: ='Px Insumos'!G13 -> 1 | K59: 92.39689084 | L59: =J59*K59 -> 92.39689084 | M59: ='Px Insumos'!H13 -> 17.58497017 | N59: =L59*M59 -> 1624.796569 | O59: 0.007212155499
C60: Bayfolan | D60: 1 | I60: Lt | J60: ='Px Insumos'!G20-1 -> 1 | K60: 92.39689084 | L60: 92.39689084 | M60: ='Px Insumos'!H20 -> 6.134291919 | N60: =L60*M60 -> 566.7895008 | O60: 0.002515868197
C61: MO Urea | D61: 1 | I61: Jornal | J61: =J22 -> 0 | K61: 92.39689084 | L61: 0 | M61: ='Px Insumos'!O28/8 -> 2.030952615 | N61: =L61*M61 -> 0 | O61: 0
C62: MO foliar | D62: 1 | I62: Jornal | J62: =J21 -> 1.111111111 | K62: 92.39689084 | L62: 102.663212 | M62: ='Px Insumos'!O29/8 -> 2.187179739 | N62: =L62*M62 -> 224.5428973 | O62: 0.0009967021857
C63: Sub Total (Fetilización) | N63: =SUM(N58:N62) -> 7211.168144 | O63: =N63/$N$108 -> 0.03200897083
C66: Riego
C67: MO Instalar Sistema Riego | D67: -1 | I67: Jornal | J67: 5 | K67: =$D$8 -> 92.39689084 | L67: =J67*K67 -> 461.9844542 | M67: ='Px Insumos'!O28 -> 16.24762092 | N67: =L67*M67 -> 7506.148282 | O67: =N67/$N$108 -> 0.03331833021
C68: MO Recoger Cinta | D68: 13 | I68: Jornal | J68: 4 | K68: 92.39689084 | L68: 369.5875634 | M68: ='Px Insumos'!O28 -> 16.24762092 | N68: 6004.918625 | O68: 0.02665466416
C69: Cinta | D69: -3 | I69: Rollo | J69: 0 | K69: 92.39689084 | L69: 0 | M69: ='Px Insumos'!V33 -> 143.1334781 | N69: 0 | O69: 0
C70: MO Regador | D70: 1 | I70: Jornal | J70: =70/7 -> 10 | K70: 92.39689084 | L70: 923.9689084 | M70: ='Px Insumos'!O28 -> 16.24762092 | N70: 15012.29656 | O70: 0.06663666041
C71: Bomba de riego | D71: 1 | I71: Hr | J71: 14 | K71: 92.39689084 | L71: 1293.556472 | M71: ='Px Maquinaria'!K78 -> 20.44763973 | N71: 26450.1767 | O71: 0.1174071825
C72: Sub Total (Riego) | N72: =SUM(N67:N71) -> 54973.54018 | O72: =N72/$N$108 -> 0.2440168373
C75: Cosecha
C76: MO Supervisor de Cosecha | D76: 13 | I76: Jornal/Día | J76: 1 | K76: =$D$8 -> 92.39689084 | L76: =J76*K76 -> 92.39689084 | M76: ='Px Insumos'!O30 -> 19.4971451 | N76: =L76*M76 -> 1801.475588 | O76: =N76/$N$108 -> 0.007996399249
C77: MO Corteros | D77: 13 | I77: Jornal/Día | J77: 13 | K77: 92.39689084 | L77: =J77*K77 -> 1201.159581 | M77: ='Px Insumos'!O28 -> 16.24762092 | N77: 19515.98553 | O77: 0.08662765854
C78: Sacos | D78: 13 | I78: Unidad | J78: ='Rendimientos & Supuestos '!F9/0.6 -> 58.33333333 | K78: 92.39689084 | L78: 5389.818633 | M78: ='Px Insumos'!V29 -> 0.2862669562 | N78: 1542.926974 | O78: 0.006848752315
C79: Transporte | D79: 13 | I79: Unidad | J79: =J78/'Px Insumos'!V31 -> 0.1822916667 | K79: 92.39689084 | L79: 16.84318323 | M79: ='Px Insumos'!V30 -> 73.61150302 | N79: =L79*M79 -> 1239.852033 | O79: 0.005503461681
C80: Sub Total (Cosecha) | N80: =SUM(N76:N79) -> 24100.24013 | O80: =N80/$N$108 -> 0.1069762718
C83: Mantenimiento
C84: Raleo | D84: 2 | I84: Jornal/Día | J84: 0 | K84: =$D$8 -> 92.39689084 | L84: =J84*K84 -> 0 | M84: ='Px Insumos'!$O$28 -> 16.24762092 | N84: =L84*M84 -> 0 | O84: =N84/$N$108 -> 0
C85: Limpieza manual de malezas nocivas | D85: 4 | I85: Jornal/Día | J85: 0 | K85: 92.39689084 | L85: 0 | M85: ='Px Insumos'!$O$28 -> 16.24762092 | N85: 0 | O85: 0
C86: Descañuele | D86: 6 | E86: 10 | I86: Jornal/Día | J86: 5 | K86: 92.39689084 | L86: 461.9844542 | M86: ='Px Insumos'!$O$28 -> 16.24762092 | N86: 7506.148282 | O86: 0.03331833021
C87: Despanojado | D87: 8 | I87: Jornal/Día | J87: 0 | K87: 92.39689084 | L87: 0 | M87: ='Px Insumos'!$O$28 -> 16.24762092 | N87: 0 | O87: 0
C88: Eliminación de machos | D88: 13 | I88: Jornal/Día | J88: 0 | K88: 92.39689084 | L88: 0 | M88: ='Px Insumos'!$O$28 -> 16.24762092 | N88: 0 | O88: 0
C89: Eliminación de plantas enfermas | D89: 1 | I89: Jornal/Día | J89: 5 | K89: 92.39689084 | L89: 461.9844542 | M89: ='Px Insumos'!$O$28 -> 16.24762092 | N89: 7506.148282 | O89: 0.03331833021
C90: Carga y descarga de cosecha | D90: 13 | I90: Jornal/Día | J90: 1 | K90: 92.39689084 | L90: 92.39689084 | M90: ='Px Insumos'!$O$28 -> 16.24762092 | N90: 1501.229656 | O90: 0.006663666041
C91: Sub Total (Mantenimiento) | N91: =SUM(N84:N90) -> 16513.52622 | O91: =N91/$N$108 -> 0.07330032645
C94: Destrucción
C95: Rastra pesada | D95: 17 | I95: Hr | J95: =1/'Px Maquinaria'!F14 -> 1.428571429 | K95: =$D$8 -> 92.39689084 | L95: =J95*K95 -> 131.9955583 | M95: ='Px Maquinaria'!K14 -> 29.99832329 | N95: =L95*M95 -> 3959.645433 | O95: =N95/$N$108 -> 0.01757609483
C96: Sub Total (Destrucción) | N96: =SUM(N95) -> 3959.645433 | O96: =N96/$N$108 -> 0.01757609483
K98: Total Costos de Producción en Campo | N98: =N26+N36+N45+N54+N63+N72+N80+N91+N96 -> 206534.8493 | O98: =N98/$N$108 -> 0.9167679681
K99: Costos de Ventas Totales ($) | N99: =N104*'Costos de Ventas'!M15 -> 9511.603081 | O99: =N99/$N$108 -> 0.04222015345
K100: Costos Variables Totales ($) | N100: =N98+N99 -> 216046.4524 | O100: =N100/$N$108 -> 0.9589881216
K103: Rendimiento promedio en QQ Oro/Ha | N103: ='Rendimientos & Supuestos '!G9 -> 21.64575
K104: Producción Total en QQ Oro | N104: =N103*D8 -> 2000
K105: Gastos Operativos por QQ Oro | N105: ='Gastos Operativos'!D21 -> 4.619697907
K106: Costos Fijos Totales ($) | N106: =N104*N105 -> 9239.395814 | O106: =N106/$N$108 -> 0.04101187841
K108: Costos Totales ($) | N108: =N100+N106 -> 225285.8482 | O108: =N108/$N$108 -> 1
K110: Costo de Producción/ QQ Oro ($) | N110: =N108/N104 -> 112.6429241
K112: Precio de venta por QQ Oro ($) | N112: ='Rendimientos & Supuestos '!I9 -> 143.1334
K113: Ingresos Totales ($) | N113: =N112*N104 -> 286266.8
K115: Utilidad Operativa ($) | N115: =N113-N108 -> 60980.95178
B120: ANÁLISIS DEL PUNTO DE EQUILIBRIO - Un solo Producto
B123: 1. ENFOQUE ALGEBRAICO
B125: Costos Fijos Totales (CF) | D125: =N106 -> 9239.395814 | E125: =_xlfn.FORMULATEXT(D125) -> =N106
B126: Costos Variables Totales (CV) | D126: =N100 -> 216046.4524 | E126: =_xlfn.FORMULATEXT(D126) -> =N100
B127: Producción Total en QQ Oro | D127: =N104 -> 2000 | E127: =N104
B128: Costo Variable Unitario (CVU) | D128: =D126/D127 -> 108.0232262 | E128: =D126/D127
B129: Precio por QQ Oro de Maíz (P) | D129: =N112 -> 143.1334 | E129: =N112
C132: a) Punto de Equilibrio Físico | F132: b) Punto de Equilibrio Monetario
C134: PEx = CF/ (P - CVU) | D134: =D125/(D129-D128) -> 263.1543742 | F134: PE$ = P * PEx | I134: =D129*D134 -> 37666.18031
D137: =_xlfn.FORMULATEXT(D134) -> =D125/(D129-D128) | I137: =_xlfn.FORMULATEXT(I134) -> =D129*D134

Sheet Presupuesto General
C3: Presupuesto General de la Finca
C4: Expresado en Dólares
C8: Actividad | D8: Unidad | E8: Cantidad Total | F8: Costo Total ($) | G8: % del Costo
C10: Preparación de Suelo
C11: Chapeo | D11: Hr | E11: ='Presupuesto Cultivo Maíz'!L14+'Presupuesto Cultivo Soya'!L14 -> 249.937472 | F11: ='Presupuesto Cultivo Maíz'!N14+'Presupuesto Cultivo Soya'!N14 -> 6926.847562 | G11: =F11/$F$112 -> 0.01540227936
C12: Arado | D12: Hr | E12: ='Presupuesto Cultivo Maíz'!L15+'Presupuesto Cultivo Soya'!L15 -> 388.791623 | F12: ='Presupuesto Cultivo Maíz'!N15+'Presupuesto Cultivo Soya'!N15 -> 11236.98371 | G12: 0.02498613702
C13: Rastra pesada | D13: Hr | E13: ='Presupuesto Cultivo Maíz'!L16+'Presupuesto Cultivo Soya'!L16 -> 249.937472 | F13: ='Presupuesto Cultivo Maíz'!N16+'Presupuesto Cultivo Soya'!N16 -> 7497.705087 | G13: 0.01667161682
C14: Rastra liviana (2) | D14: Hr | E14: ='Presupuesto Cultivo Maíz'!L17+'Presupuesto Cultivo Soya'!L17 -> 466.5499477 | F14: ='Presupuesto Cultivo Maíz'!N17+'Presupuesto Cultivo Soya'!N17 -> 14009.26274 | G14: 0.03115047306
C15: Siembra | D15: Hr | E15: ='Presupuesto Cultivo Maíz'!L18+'Presupuesto Cultivo Soya'!L18 -> 194.3958115 | F15: ='Presupuesto Cultivo Maíz'!N18+'Presupuesto Cultivo Soya'!N18 -> 5765.405474 | G15: 0.01281974014
C16: Aplicación Herbicida | D16: Hr | E16: ='Presupuesto Cultivo Maíz'!L19+'Presupuesto Cultivo Soya'!L19 -> 194.3958115 | F16: ='Presupuesto Cultivo Maíz'!N19+'Presupuesto Cultivo Soya'!N19 -> 4836.701539 | G16: 0.01075470878
C17: Aplicación Insecticida/fungicida (2 + 2) | D17: Hr | E17: ='Presupuesto Cultivo Maíz'!L20+'Presupuesto Cultivo Soya'!L20 -> 880.2464581 | F17: ='Presupuesto Cultivo Maíz'!N20+'Presupuesto Cultivo Soya'!N20 -> 21901.13751 | G17: 0.04869855084
C18: Aplicación foliar | D18: Hr | E18: ='Presupuesto Cultivo Maíz'!L21+'Presupuesto Cultivo Soya'!L21 -> 194.3958115 | F18: ='Presupuesto Cultivo Maíz'!N21+'Presupuesto Cultivo Soya'!N21 -> 4889.886177 | G18: 0.01087296815
C19: Cultivada | D19: Hr | E19: ='Presupuesto Cultivo Maíz'!L22+'Presupuesto Cultivo Soya'!L22 -> 91.73259947 | F19: ='Presupuesto Cultivo Maíz'!N22+'Presupuesto Cultivo Soya'!N22 -> 2566.203405 | G19: 0.005706113983
C20: Acarreo de Cosecha | D20: Hr | E20: ='Presupuesto Cultivo Maíz'!L23+'Presupuesto Cultivo Soya'!L23 -> 0 | F20: ='Presupuesto Cultivo Maíz'!N23+'Presupuesto Cultivo Soya'!N23 -> 0 | G20: 0
C21: Acarreo de Agua (5) | D21: Hr | E21: ='Presupuesto Cultivo Maíz'!L24+'Presupuesto Cultivo Soya'!L24 -> 874.7811518 | F21: ='Presupuesto Cultivo Maíz'!N24+'Presupuesto Cultivo Soya'!N24 -> 23365.70446 | G21: 0.05195510719
C22: Trilladora mecánica | D22: Hr | E22: ='Presupuesto Cultivo Soya'!L25 -> 3233.89118 | F22: ='Presupuesto Cultivo Soya'!N25 -> 3289.791314 | G22: 0.007315057014
C23: Sub Total (Preparación de suelo) | F23: =SUM(F11:F22) -> 106285.629 | G23: 0.2363327523
C26: Siembra
C27: Semilla maíz | D27: QQ | E27: ='Presupuesto Cultivo Maíz'!L29 -> 49.53560372 | F27: ='Presupuesto Cultivo Maíz'!N29 -> 7596.646339 | G27: =F27/$F$112 -> 0.01689161889 | I27: =SUM(F27:F31) -> 26656.87549
C28: Semilla soya | D28: QQ | E28: ='Presupuesto Cultivo Soya'!L30 -> 92.39689084 | F28: ='Presupuesto Cultivo Soya'!N30 -> 14169.73752 | G28: =F28/$F$112 -> 0.03150729878
C29: Tratador Gaucho | D29: Gr | E29: ='Presupuesto Cultivo Maíz'!L30+'Presupuesto Cultivo Soya'!L31 -> 17.49562304 | F29: ='Presupuesto Cultivo Maíz'!N30+'Presupuesto Cultivo Soya'!N31 -> 4.028199655 | G29: 8.956954205e-06
C30: Protector Scort | D30: Gr | E30: ='Presupuesto Cultivo Maíz'!L31+'Presupuesto Cultivo Soya'!L32 -> 0 | F30: ='Presupuesto Cultivo Maíz'!N31+'Presupuesto Cultivo Soya'!N32 -> 0 | G30: =F30/$F$112 -> 0
C31: 12-24-12 | D31: QQ | E31: ='Presupuesto Cultivo Maíz'!L32+'Presupuesto Cultivo Soya'!L33 -> 257.5155699 | F31: ='Presupuesto Cultivo Maíz'!N32+'Presupuesto Cultivo Soya'!N33 -> 4886.463435 | G31: =F31/$F$112 -> 0.01086535747
C32: MO Siembra | D32: Jornal/Hr | E32: ='Presupuesto Cultivo Maíz'!L33+'Presupuesto Cultivo Soya'!L34 -> 194.3958115 | F32: ='Presupuesto Cultivo Maíz'!N33+'Presupuesto Cultivo Soya'!N34 -> 1854.337514 | G32: =F32/$F$112 -> 0.004123235594
C33: MO Fertilización | D33: Jornal/Hr | E33: ='Presupuesto Cultivo Maíz'!L34+'Presupuesto Cultivo Soya'!L35 -> 194.3958115 | F33: ='Presupuesto Cultivo Maíz'!N34+'Presupuesto Cultivo Soya'!N35 -> 1854.337514 | G33: =F33/$F$112 -> 0.004123235594
C34: Sub Total (Siembra) | F34: =SUM(F27:F33) -> 30365.55052 | G34: =F34/$F$112 -> 0.06751970328
C37: Control de Malezas
C38: Prowl | D38: Lt | E38: ='Presupuesto Cultivo Maíz'!L39+'Presupuesto Cultivo Soya'!L42 -> 247.6780186 | F38: ='Presupuesto Cultivo Maíz'!N39+'Presupuesto Cultivo Soya'!N42 -> 3545.101625 | G38: =F38/$F$112 -> 0.00788275548 | I38: =SUM(F38:F42) -> 13499.76344
C39: Gesaprim 90 | D39: Kg | E39: ='Presupuesto Cultivo Maíz'!L40 -> 165.1186791 | F39: ='Presupuesto Cultivo Maíz'!N40 -> 1418.04065 | G39: =F39/$F$112 -> 0.003153102192
C40: Convey | D40: Lt | E40: ='Presupuesto Cultivo Maíz'!L41 -> 8.255933953 | F40: ='Presupuesto Cultivo Maíz'!N41 -> 4433.065175 | G40: =F40/$F$112 -> 0.009857198043
C41: Flex | D41: Lt | E41: ='Presupuesto Cultivo Soya'!L40 -> 55.43813451 | F41: ='Presupuesto Cultivo Soya'!N40 -> 1575.674812 | G41: 0.003503611624
C42: Fusilade | D42: Kg | E42: ='Presupuesto Cultivo Soya'!L41 -> 92.39689084 | F42: ='Presupuesto Cultivo Soya'!N41 -> 2527.881174 | G42: 0.005620902102
C43: MO Herbicida mecanizada | D43: Jornal/Hr | E43: ='Presupuesto Cultivo Maíz'!J42+'Presupuesto Cultivo Soya'!L43 -> 103.7743232 | F43: ='Presupuesto Cultivo Maíz'!N42+'Presupuesto Cultivo Soya'!N43 -> 425.1785803 | G43: 0.0009454112007
C44: MO Convey | D44: Jornal/Hr | E44: ='Presupuesto Cultivo Maíz'!J43+'Presupuesto Cultivo Soya'!J44 -> 2.222222222 | F44: ='Presupuesto Cultivo Maíz'!N43+'Presupuesto Cultivo Soya'!N44 -> 394.8086817 | G44: 0.0008778818292
C45: Sub Total (Control de Malezas) | F45: =SUM(F38:F44) -> 14319.7507 | G45: =F45/$F$112 -> 0.03184086247
C48: Control de Plagas
C49: Curyom 55EC | D49: Lt | E49: ='Presupuesto Cultivo Maíz'!L48 -> 20.63983488 | F49: ='Presupuesto Cultivo Maíz'!N48 -> 751.2239157 | G49: =F49/$F$112 -> 0.001670393423 | I49: =SUM(F49:F55) -> 14771.31901
C50: Mancozeb 80WP | D50: Kg | E50: ='Presupuesto Cultivo Maíz'!L49 -> 57.79153767 | F50: ='Presupuesto Cultivo Maíz'!N49 -> 236.3401083 | G50: 0.000525517032
C51: Nativo | D51: Kg | E51: ='Presupuesto Cultivo Maíz'!L50+'Presupuesto Cultivo Soya'!L50 -> 26.24343456 | F51: ='Presupuesto Cultivo Maíz'!N50+'Presupuesto Cultivo Soya'!N50 -> 3895.834302 | G51: 0.008662631553
C52: Proclaim 5SG | D52: Kg | E52: ='Presupuesto Cultivo Maíz'!L51 -> 8.255933953 | F52: ='Presupuesto Cultivo Maíz'!N51 -> 1840.076558 | G52: 0.004091525464
C53: Connet | D53: Lt | E53: ='Presupuesto Cultivo Soya'!L49 -> 41.57860088 | F53: ='Presupuesto Cultivo Soya'!N49 -> 1212.362742 | G53: 0.002695764483
C54: Amistar (2) | D54: Kg | E54: ='Presupuesto Cultivo Soya'!L51 -> 22.1752538 | F54: ='Presupuesto Cultivo Soya'!N51 -> 4552.453271 | G54: 0.01012266495
C55: Engeo | D55: Kg | E55: ='Presupuesto Cultivo Soya'!L52 -> 27.71906725 | F55: ='Presupuesto Cultivo Soya'!N52 -> 2283.028109 | G55: 0.005076455979
C56: MO Aplicaciones | D56: Jornal/Hr | E56: ='Presupuesto Cultivo Maíz'!L52+'Presupuesto Cultivo Soya'!L53 -> 1981.037652 | F56: ='Presupuesto Cultivo Maíz'!N52+'Presupuesto Cultivo Soya'!N53 -> 11321.03776 | G56: 0.02517303646
C57: Sub Total (Control de Plagas) | F57: =SUM(F49:F56) -> 26092.35677 | G57: 0.05801798935
C60: Fertilización
C61: Urea | D61: QQ | E61: ='Presupuesto Cultivo Maíz'!L57+'Presupuesto Cultivo Soya'!L58 -> 524.8686911 | F61: ='Presupuesto Cultivo Maíz'!N57+'Presupuesto Cultivo Soya'!N58 -> 9079.547712 | G61: =F61/$F$112 -> 0.02018894296 | I61: =SUM(F61:F64) -> 12284.01996
C62: Kelpak | D62: Lt | E62: ='Presupuesto Cultivo Maíz'!L58 -> 0 | F62: ='Presupuesto Cultivo Maíz'!N58 -> 0 | G62: =F62/$F$112 -> 0
C63: Bayfolan | D63: Lt | E63: ='Presupuesto Cultivo Maíz'!L59+'Presupuesto Cultivo Soya'!L60 -> 257.5155699 | F63: ='Presupuesto Cultivo Maíz'!N59+'Presupuesto Cultivo Soya'!N60 -> 1579.675679 | G63: =F63/$F$112 -> 0.003512507803
C64: KCL | D64: QQ | E64: ='Presupuesto Cultivo Soya'!L59 -> 92.39689084 | F64: ='Presupuesto Cultivo Soya'!N59 -> 1624.796569 | G64: 0.003612836927
C65: MO Urea | D65: hr | E65: ='Presupuesto Cultivo Maíz'!L60+'Presupuesto Cultivo Soya'!L61 -> 91.73259947 | F65: ='Presupuesto Cultivo Maíz'!N60+'Presupuesto Cultivo Soya'!N61 -> 186.3045627 | G65: 0.0004142598629
C66: MO foliar | D66: hr | E66: ='Presupuesto Cultivo Maíz'!L61+'Presupuesto Cultivo Soya'!L62 -> 194.3958115 | F66: ='Presupuesto Cultivo Maíz'!N61+'Presupuesto Cultivo Soya'!N62 -> 425.1785803 | G66: 0.0009454112007
C67: Sub Total (Fetilización) | F67: =SUM(F61:F66) -> 12895.5031 | G67: =F67/$F$112 -> 0.02867395875
C70: Riego
C71: MO Instalar Sistema Riego | D71: Jornal | E71: ='Presupuesto Cultivo Maíz'!L66+'Presupuesto Cultivo Soya'!L67 -> 874.7811518 | F71: ='Presupuesto Cultivo Maíz'!N66+'Presupuesto Cultivo Soya'!N67 -> 14213.11254 | G71: =F71/$F$112 -> 0.03160374585 | I71: =SUM(F73) -> 0
C72: MO Recoger Cinta | D72: Jornal | E72: ='Presupuesto Cultivo Maíz'!L67+'Presupuesto Cultivo Soya'!L68 -> 699.8249215 | F72: ='Presupuesto Cultivo Maíz'!N67+'Presupuesto Cultivo Soya'!N68 -> 11370.49003 | G72: 0.02528299668
C73: Cinta | D73: Rollo | E73: ='Presupuesto Cultivo Maíz'!L68+'Presupuesto Cultivo Soya'!L69 -> 0 | F73: ='Presupuesto Cultivo Maíz'!N68+'Presupuesto Cultivo Soya'!N69 -> 0 | G73: 0
C74: MO Regador | D74: Jornal | E74: ='Presupuesto Cultivo Maíz'!L69+'Presupuesto Cultivo Soya'!L70 -> 2103.388045 | F74: ='Presupuesto Cultivo Maíz'!N69+'Presupuesto Cultivo Soya'!N70 -> 34175.05159 | G74: 0.07599036747
C75: Bomba de riego | D75: Hr | E75: ='Presupuesto Cultivo Maíz'!L70+'Presupuesto Cultivo Soya'!L71 -> 2944.743262 | F75: ='Presupuesto Cultivo Maíz'!N70+'Presupuesto Cultivo Soya'!N71 -> 60213.04932 | G75: 0.1338874861
C76: Sub Total (Riego) | F76: =SUM(F71:F75) -> 119971.7035 | G76: 0.2667645961
C79: Cosecha
C80: MO Supervisor de Cosecha | D80: Jornal/Día | E80: ='Presupuesto Cultivo Maíz'!L75+'Presupuesto Cultivo Soya'!L76 -> 174.9562304 | F80: ='Presupuesto Cultivo Maíz'!N75+'Presupuesto Cultivo Soya'!N76 -> 3411.14701 | G80: =F80/$F$112 -> 0.007584899005 | I80: =SUM(F82) -> 5481.92878
C81: MO Corteros | D81: Jornal/Día | E81: ='Presupuesto Cultivo Maíz'!L76+'Presupuesto Cultivo Soya'!L77 -> 2522.109013 | F81: ='Presupuesto Cultivo Maíz'!N76+'Presupuesto Cultivo Soya'!N77 -> 40978.27116 | G81: 0.09111775225
C82: Sacos | D82: Unidad | E82: ='Presupuesto Cultivo Maíz'!L77+'Presupuesto Cultivo Soya'!L78 -> 19149.70855 | F82: ='Presupuesto Cultivo Maíz'!N77+'Presupuesto Cultivo Soya'!N78 -> 5481.92878 | G82: 0.01218941196
C83: Transporte | D83: Unidad | E83: ='Presupuesto Cultivo Maíz'!L78+'Presupuesto Cultivo Soya'!L79 -> 59.84283923 | F83: ='Presupuesto Cultivo Maíz'!N78+'Presupuesto Cultivo Soya'!N79 -> 4405.121341 | G83: 0.009795063179
C84: Sub Total (Cosecha) | F84: =SUM(F80:F83) -> 54276.46829 | G84: =F84/$F$112 -> 0.1206871264
C87: Mantenimiento
C88: Raleo | D88: Jornal/Día | E88: ='Presupuesto Cultivo Maíz'!L83+'Presupuesto Cultivo Soya'!L84 -> 0 | F88: ='Presupuesto Cultivo Maíz'!N83+'Presupuesto Cultivo Soya'!N84 -> 0 | G88: =F88/$F$112 -> 0
C89: Limpieza manual de malezas nocivas | D89: Jornal/Día | E89: ='Presupuesto Cultivo Maíz'!L84+'Presupuesto Cultivo Soya'!L85 -> 0 | F89: ='Presupuesto Cultivo Maíz'!N84+'Presupuesto Cultivo Soya'!N85 -> 0 | G89: 0
C90: Descañuele | D90: Jornal/Día | E90: ='Presupuesto Cultivo Maíz'!L85+'Presupuesto Cultivo Soya'!L86 -> 874.7811518 | F90: ='Presupuesto Cultivo Maíz'!N85+'Presupuesto Cultivo Soya'!N86 -> 14213.11254 | G90: 0.03160374585
C91: Despanojado | D91: Jornal/Día | E91: ='Presupuesto Cultivo Maíz'!L86+'Presupuesto Cultivo Soya'!L87 -> 0 | F91: ='Presupuesto Cultivo Maíz'!N86+'Presupuesto Cultivo Soya'!N87 -> 0 | G91: 0
C92: Eliminación de machos | D92: Jornal/Día | E92: ='Presupuesto Cultivo Maíz'!L87+'Presupuesto Cultivo Soya'!L88 -> 0 | F92: ='Presupuesto Cultivo Maíz'!N87+'Presupuesto Cultivo Soya'!N88 -> 0 | G92: =F92/$F$112 -> 0
C93: Eliminación de plantas enfermas | D93: Jornal/Día | E93: ='Presupuesto Cultivo Maíz'!L88+'Presupuesto Cultivo Soya'!L89 -> 461.9844542 | F93: ='Presupuesto Cultivo Maíz'!N88+'Presupuesto Cultivo Soya'!N89 -> 7506.148282 | G93: =F93/$F$112 -> 0.01669039079
C94: Carga y descarga de cosecha | D94: Jornal/Día | E94: ='Presupuesto Cultivo Maíz'!L89+'Presupuesto Cultivo Soya'!L90 -> 174.9562304 | F94: ='Presupuesto Cultivo Maíz'!N89+'Presupuesto Cultivo Soya'!N90 -> 2842.622508 | G94: 0.00632074917
C95: Sub Total (Mantenimiento) | F95: =SUM(F88:F94) -> 24561.88333 | G95: =F95/$F$112 -> 0.05461488581
I96: Compras insumos
I97: =SUM(I27,I38,I49,I61,I71,I80) -> 72693.90668
C98: Destrucción
C99: Rastra pesada | D99: Hr | E99: ='Presupuesto Cultivo Maíz'!L94+'Presupuesto Cultivo Soya'!L95 -> 249.937472 | F99: ='Presupuesto Cultivo Maíz'!N94+'Presupuesto Cultivo Soya'!N95 -> 7497.705087 | G99: =F99/$F$112 -> 0.01667161682
C100: Sub Total (Destrucción) | F100: =SUM(F99) -> 7497.705087 | G100: =F100/$F$112 -> 0.01667161682
C102: Total Costos de Producción en Campo | F102: =F23+F34+F45+F57+F67+F76+F84+F95+F100 -> 396266.5503 | G102: =F102/$F$112 -> 0.8811234913
C103: Costos de Ventas Totales ($) | F103: ='Presupuesto Cultivo Maíz'!N98+'Presupuesto Cultivo Soya'!N99 -> 25743.99404 | G103: =F103/$F$112 -> 0.057243383
C104: Costos Variables Totales ($) | F104: =F102+F103 -> 422010.5443 | G104: =F104/$F$112 -> 0.9383668743
C107: Rendimiento promedio en QQ Oro/Ha | F107: ='Rendimientos & Supuestos '!G8 -> 48.45
C108: Producción Total en QQ Oro | F108: ='Presupuesto Cultivo Maíz'!N103+'Presupuesto Cultivo Soya'!N104 -> 6000
C109: Gastos Operativos por QQ Oro | F109: ='Gastos Operativos'!D21 -> 4.619697907
C110: Costos Fijos Totales ($) | F110: =F108*F109 -> 27718.18744 | G110: =F110/$F$112 -> 0.06163312567
C112: Costos Totales ($) | F112: =F104+F110 -> 449728.7317 | G112: =F112/$F$112 -> 1 | J112: =F112-BG!C24 -> 445571.0036
C115: Ingresos Totales ($) | F115: ='Presupuesto Cultivo Maíz'!N112+'Presupuesto Cultivo Soya'!N113 -> 586746.8
C117: Utilidad Operativa ($) | F117: =F115-F112 -> 137018.0683

Sheet PE$ - Múltiples Productos
B3: ANÁLISIS DEL PUNTO DE EQUILIBRIO MONETARIO- Múltiples Productos
B6: Columnas
B7: 1 | C7: 2 | D7: 3 | E7: 4 | F7: 5 | G7: 6 | H7: 7 | I7: 8
B8: Producto ( i ) | C8: Precio de Venta (P) | D8: Costo Variable Unitario (CVU) | E8: CVU/P | F8: 1 - (CVU/P) | G8: Pronóstico de Ventas Anuales ($) | H8: % de Ventas | I8: Contribución Ponderada (Col. 5 * Col. 7)
B9: Maíz | C9: ='Presupuesto Cultivo Maíz'!D129 -> 75.12 | D9: ='Presupuesto Cultivo Maíz'!D128 -> 51.49102297 | E9: =D9/C9 -> 0.6854502526 | F9: =1-E9 -> 0.3145497474 | G9: ='Presupuesto Cultivo Maíz'!N112 -> 300480 | H9: =G9/$G$11 -> 0.5121118684 | I9: =F9*H9 -> 0.1610846588
B10: Soya | C10: ='Presupuesto Cultivo Soya'!D129 -> 143.1334 | D10: ='Presupuesto Cultivo Soya'!D128 -> 108.0232262 | E10: =D10/C10 -> 0.7547031385 | F10: =1-E10 -> 0.2452968615 | G10: ='Presupuesto Cultivo Soya'!N113 -> 286266.8 | H10: =G10/$G$11 -> 0.4878881316 | I10: =F10*H10 -> 0.1196774275
B11: Total | G11: =SUM(G9:G10) -> 586746.8 | H11: =SUM(H9:H10) -> 1 | I11: =SUM(I9:I10) -> 0.2807620863
B14: Costos Fijos Totales: | D14: ='Presupuesto General'!F110 -> 27718.18744
D18: = | E18: =D14/I11 -> 98724.82359
B23: Ventas Diarias para lograr el Punto de Equilibrio
B25: Dado que las ventanas de mercado de ventas de semillas se extienden aproximadamente a lo largo de 3 semanas cada una, suponiendo que se trabajan 6 días a la semana, entonces el total de días serían 6X6= 36 días, por lo que las ventas diarias serían igual a:
B27: Ventas diarias= | C27: PE$/36 días= | D27: =E18/36 -> 2742.356211 | E27: La Administración de la Finca El Yeguare ya sabe que debe generar ventas promedio de $2,742 al día durante las ventanas de mercado de primera y postrera, para poder lograr el equilibrio, es decir, cubrir los costos totales con los ingresos totales.
B31: ANÁLISIS DEL PUNTO DE EQUILIBRIO FÍSICO- Múltiples Productos
B33: El gerente de la Finca El Yaguare quiere conocer el Punto de Equilibrio Físico para el número de quintales oro a vender al día para cada producto.
B35: PEx Diario= | C35: % de ventas * Ventas diarias / Precio de venta unitario de cada producto
B36: Punto de Equilibrio Físico
B37: Producto | C37: % de Ventas | D37: Ventas diarias | E37: Precio de venta (P) | F37: PEx Diario | G37: PEx Anual | H37: PE$
B38: Maíz | C38: =H9 -> 0.5121118684 | D38: =$D$27 -> 2742.356211 | E38: =C9 -> 75.12 | F38: =C38*D38/E38 -> 18.69532964 | G38: =F38*36 -> 673.0318672 | H38: =G38*E38 -> 50558.15386
B39: Soya | C39: =H10 -> 0.4878881316 | D39: =$D$27 -> 2742.356211 | E39: =C10 -> 143.1334 | F39: =C39*D39/E39 -> 9.347664822 | G39: =F39*36 -> 336.5159336 | H39: =G39*E39 -> 48166.66973
B40: Total | H40: =SUM(H38:H39) -> 98724.82359

Sheet Estado de Resultados
B2: ESTADO DE RESULTADOS FINCA EL YEGUARE
C4: Maíz | E4: Soya | H4: Total | I4: Vínculo
B5: Ventas | C5: =C6*C7 -> 300480 | E5: =E6*E7 -> 286266.8 | H5: =SUM(C5,E5) -> 586746.8 | K5: Financiamiento
B6: Precio (L) | C6: ='Presupuesto Cultivo Maíz'!N111 -> 75.12 | E6: ='Presupuesto Cultivo Soya'!N112 -> 143.1334 | K6: Cálculo del Financiamiento
B7: Cantidad (QQ) | C7: ='Presupuesto Cultivo Maíz'!N103 -> 4000 | E7: ='Presupuesto Cultivo Soya'!N104 -> 2000 | K7: Financiamiento bancario (valor) | L7: 100000
B8: (-) Devoluciones en ventas | C8: 0 | E8: 0 | H8: =SUM(C8,E8) -> 0 | K8: Financiamiento bancario (tasa) | L8: ='[1]Rendimientos & Supuestos '!D9 -> 0.2
B9: Ventas Netas | C9: =C5-C8 -> 300480 | E9: =E5-E8 -> 286266.8 | H9: =H5-H8 -> 586746.8 | I9: FC | K9: Financiamiento bancario (periodos) | L9: ='[1]Rendimientos & Supuestos '!D10 -> 5 | M9: años
B10: (-) Costo de ventas | C10: =SUM(C11:C12) -> 205964.0919 | E10: =SUM(E11:E12) -> 216046.4524 | H10: =SUM(H11:H12) -> 422010.5443 | K10: Modalidad | L10: Pagos exactos
B11: (-) Costos producción en campo | C11: ='Presupuesto Cultivo Maíz'!N97 -> 189731.7009 | E11: ='Presupuesto Cultivo Soya'!N98 -> 206534.8493 | H11: =SUM(C11,E11) -> 396266.5503 | I11: FC
B12: (-) Costos de empaque y transporte | C12: ='Presupuesto Cultivo Maíz'!N98 -> 16232.39096 | E12: ='Presupuesto Cultivo Soya'!N99 -> 9511.603081 | H12: =SUM(C12,E12) -> 25743.99404 | I12: FC
B13: Utilidad Bruta | C13: =C5-C10 -> 94515.9081 | E13: =E5-E10 -> 70220.34759 | H13: =H5-H10 -> 164736.2557 | K13: Tabla de Amortización del Préstamo
B14: (-) Gastos Operativos | C14: =SUM(C15:C18) -> 18478.79163 | E14: =SUM(E15:E18) -> 9239.395814 | H14: =SUM(H15:H18) -> 27718.18744
B15: (-) Gastos de Administración | C15: ='Presupuesto Cultivo Maíz'!$N$105*0.7 -> 12935.15414 | E15: ='Presupuesto Cultivo Soya'!N106*0.7 -> 6467.57707 | H15: =C15+E15 -> 19402.73121 | I15: BG | K15: Concepto | L15: Año 0 | M15: Año 1 | N15: Año 2 | O15: Año 3 | P15: Año 4 | Q15: Año 5
B16: (-) Gastos Generales | C16: ='Presupuesto Cultivo Maíz'!$N$105*0.1 -> 1847.879163 | E16: ='Presupuesto Cultivo Soya'!N106*0.1 -> 923.9395814 | H16: =C16+E16 -> 2771.818744 | I16: BG | K16: Cuota anual (anualidad) | M16: =PMT($L$8,$L$9,-$L$7) -> 33437.97033 | N16: =PMT($L$8,$L$9,-$L$7) -> 33437.97033 | O16: =PMT($L$8,$L$9,-$L$7) -> 33437.97033 | P16: =PMT($L$8,$L$9,-$L$7) -> 33437.97033 | Q16: =PMT($L$8,$L$9,-$L$7) -> 33437.97033
B17: (-) Gastos de ventas | C17: ='Presupuesto Cultivo Maíz'!$N$105*0.05 -> 923.9395814 | E17: ='Presupuesto Cultivo Soya'!N106*0.05 -> 461.9697907 | H17: 1385.909372 | I17: BG | K17: Intereses | M17: =L19*$L$8 -> 20000 | N17: =M19*$L$8 -> 17312.40593 | O17: =N19*$L$8 -> 14087.29306 | P17: =O19*$L$8 -> 10217.1576 | Q17: =P19*$L$8 -> 5572.995055
B18: (-) Gastos de depreciación | C18: ='Presupuesto Cultivo Maíz'!$N$105*0.15 -> 2771.818744 | E18: ='Presupuesto Cultivo Soya'!N106*0.15 -> 1385.909372 | H18: 4157.728116 | I18: BG | K18: Abono a capital (amortización) | M18: =M16-M17 -> 13437.97033 | N18: =N16-N17 -> 16125.56439 | O18: =O16-O17 -> 19350.67727 | P18: =P16-P17 -> 23220.81273 | Q18: =Q16-Q17 -> 27864.97527
B19: (+) Otros ingresos | C19: 0 | E19: 0 | H19: ='Flujo de caja'!C30 -> 100000 | I19: FC | K19: Saldo crédito | L19: =L7 -> 100000 | M19: =L19-M18 -> 86562.02967 | N19: =M19-N18 -> 70436.46528 | O19: =N19-O18 -> 51085.788 | P19: =O19-P18 -> 27864.97527 | Q19: =P19-Q18 -> -7.639755495e-11
B20: (-) Otros egresos | C20: 0 | E20: 0 | H20: ='Flujo de caja'!C26+'Flujo de caja'!C29 -> -85000 | I20: FC
B21: (-) Pérdidas | C21: 0 | E21: 0 | H21: =C21+E21 -> 0
B22: Utilidad Operativa | C22: =C13-C14+C19-C20-C21 -> 76037.11647 | E22: =E13-E14+E19-E20-E21 -> 60980.95178 | H22: =H13-H14+H19+H20+H21 -> 152018.0683 | K22: Cultivo | L22: Maíz Tuxpeño | M22: Soya | N22: Total
B23: (-) Gastos financieros (Intereses) | C23: =L24*$M$17 -> 9981.256152 | E23: =M24*$M$17 -> 10018.74385 | H23: =SUM(C23,E23) -> 20000 | I23: FC y ER | K23: Costos Totales | L23: ='Presupuesto Cultivo Maíz'!N107 -> 224442.8835 | M23: ='Presupuesto Cultivo Soya'!N108 -> 225285.8482 | N23: =SUM(L23:M23) -> 449728.7317
B24: Utilidad Antes de Impuestos (UAI) | C24: =C22-C23 -> 66055.86032 | E24: =E22-E23 -> 50962.20793 | H24: =H22-H23 -> 132018.0683 | K24: Ponderación | L24: =L23/$N$23 -> 0.4990628076 | M24: =M23/$N$23 -> 0.5009371924 | N24: =N23/$N$23 -> 1
B25: (-) Impuestos (Impuestos Sobre la Renta y otros que apliquen) | C25: =C24*0.25 -> 16513.96508 | E25: =E24*0.25 -> 12740.55198 | H25: =SUM(C25,E25) -> 29254.51706 | I25: BG y FC
B26: Utilidad Neta | C26: =C24-C25 -> 49541.89524 | E26: =E24-E25 -> 38221.65595 | H26: =H24-H25 -> 102763.5512 | I26: BG
B27: (-) Pago de dividendos (25%) | C27: =C26*0.25 -> 12385.47381 | E27: =E26*0.25 -> 9555.413987 | H27: =C27+E27 -> 21940.8878
B28: Utilidades Retenidas (Utilidades del ejercicio) | C28: =C26-C27 -> 37156.42143 | E28: =E26-E27 -> 28666.24196 | H28: =H26-H27 -> 80822.66339 | I28: BG
B30: Rentabilidad | C30: =C26/(C8+C10+C14+C20+C21+C23+C25) -> 0.1974267531 | E30: =E26/(E8+E10+E14+E20+E21+E23+E25) -> 0.1540915308 | H30: =H26/(H8+H10+H14+H20+H21+H23+H25) -> 0.248231182

Sheet BG
B1: FINCA EL YEGUARE
B2: Balance General - Estado de Situación Financiera
B3: 31 de diciembre del 2022
B5: ACTIVO | D5: PASIVO Y CAPITAL DE LOS ACCIONISTAS
B6: Activo Circulante | D6: Pasivo Circulante
B7: Efectivo | C7: 2000 | D7: Cuentas por pagar | E7: =C11 -> 1000
B8: Cuentas bancarias | C8: =112542.421179125+'Flujo de caja'!C30+'Flujo de caja'!C37+'Flujo de caja'!C38+'Flujo de caja'!C26+'Flujo de caja'!C29 -> 327542.4212 | D8: Facturas por pagar/ deuda corto plazo | E8: =-'Flujo de caja'!C34-'Flujo de caja'!C35 -> 33437.97033
B9: Cuentas por cobrar | C9: ='Flujo de caja'!C11 -> 15000 | D9: Servicios públicos por pagar | E9: 0
B10: Inventarios | D10: Salarios | E10: 0
B11: Materia prima (insumos) | C11: ='Flujo de caja'!C20 -> 1000 | D11: Total Pasivos Circulantes | E11: =SUM(E7:E10) -> 34437.97033
B12: Producto en proceso | C12: 0
B13: Producto terminado | C13: 0
B14: Otros Activos Circulantes | C14: 0 | D14: Deudas de Largo Plazo
B15: Total Activo Circulante | C15: =SUM(C7:C14) -> 345542.4212 | D15: Préstamo por pagar (deuda largo plazo) | E15: ='Estado de Resultados'!M19 -> 86562.02967
D16: Oblig. Por arrendamiento de capital | E16: 0
D17: Impuestos por pagar | E17: 0
B18: Activo Fijo | D18: Total Pasivos de Largo Plazo | E18: =SUM(E15:E17) -> 86562.02967
B19: Maquinaria y equipo en campo | C19: =150000-'Flujo de caja'!C29-'Flujo de caja'!C30 -> 120000
B20: Maquinaria y equipo en planta | C20: =300000-'Flujo de caja'!C26 -> 315000
B21: Terrenos | C21: 800000 | D21: TOTAL DE PASIVOS | E21: =E11+E18 -> 121000
B22: Edificios | C22: 500000
B23: Equipo de transporte | C23: 50000
B24: Menos la depreciación acumulada | C24: ='Estado de Resultados'!H18 -> 4157.728116
B25: Propiedad, planta y equipo neto | C25: =SUM(C19:C24) -> 1789157.728 | D25: CAPITAL DE LOS ACCIONISTAS
B26: Otros Activos Fijos | D26: Capital social | E26: =C33-E21-E27-E28-E29 -> 1877877.486
B27: Marca | C27: 50000 | D27: Aportaciones de capital | E27: ='Flujo de caja'!C38 -> 100000
B28: Patentes de productos | C28: 25000 | D28: Utilidades retenidas acumuladas | E28: 30000
B29: Total de Activos al Largo Plazo | C29: =C25+C27+C28 -> 1864157.728 | D29: Utilidad del período o del ejercicio | E29: ='Estado de Resultados'!H28 -> 80822.66339
D30: Total Capital o Patrimonio Neto | E30: =SUM(E26:E29) -> 2088700.149
B33: TOTAL DE ACTIVOS | C33: =SUM(C15,C29) -> 2209700.149 | D33: TOTAL PASIVO Y CAPITAL | E33: =E21+E30 -> 2209700.149

Sheet Flujo de caja
B2: FINCA EL YEGUARE S.A
B3: ESTADO DE FLUJO DE CAJA O DE EFECTIVO
B4: AÑO 2022
B5: MÉTODO DIRECTO
B7: ACTIVIDADES OPERACIONALES | D7: Vínculo
B8: Recaudo de cuentas por cobrar a clientes | C8: =C9+C10-C11 -> 566746.8
B9: Ventas netas | C9: ='Estado de Resultados'!H9-BG!C9 -> 571746.8 | D9: ER
B10: Saldo final cuentas por cobrar año 2021 | C10: 10000
B11: Saldo final cuentas por cobrar | C11: 15000
B12: (-) Pagos por salarios de mano de obra directa | C12: =-(SUM('Presupuesto General'!F32:F33)+SUM('Presupuesto General'!F43:F44)+SUM('Presupuesto General'!F56)+SUM('Presupuesto General'!F65:F66)+SUM('Presupuesto General'!F71:F72)+'Presupuesto General'!F74+'Presupuesto General'!F80+'Presupuesto General'!F81+SUM('Presupuesto General'!F95)) -> -145171.1389 | D12: ER
B13: (-) Pagos gastos de administración | C13: =-'Estado de Resultados'!H15 -> -19402.73121 | D13: ER
B14: (-) Pagos gastos generales | C14: =-'Estado de Resultados'!H16 -> -2771.818744 | D14: ER
B15: (-) Pagos gastos de ventas + transporte | C15: =-'Estado de Resultados'!H17-('Presupuesto General'!F103*'Costos de Ventas'!G14)-'Presupuesto General'!F83 -> -18698.06212 | D15: ER
B16: (-) Pagos gastos de impuestos | C16: =-'Estado de Resultados'!H25 -> -29254.51706 | D16: ER
B17: (-) Pagos a proveedores | C17: =-(C18+C19-C20)-C21 -> -261527.2527
B18: Compras | C18: =SUM('Presupuesto General'!F27:F31)+SUM('Presupuesto General'!F38:F42)+SUM('Presupuesto General'!F49:F55)+SUM('Presupuesto General'!F61:F64)+SUM('Presupuesto General'!F82)+('Presupuesto General'!F103*(1-'Costos de Ventas'!G14)) -> 85530.86931 | D18: BG y ER
B19: Saldo final cuentas por pagar 2021 | C19: 3000
B20: Saldo final cuentas por pagar | C20: 1000 | D20: BG
B21: Proveedores de servicios de maquinaria | C21: ='Presupuesto General'!F23+'Presupuesto General'!F75+'Presupuesto General'!F99 -> 173996.3834 | D21: BG y ER
B22: (-) Otras cuentas por pagar | C22: 0
B23: Flujo de efectivo operativo | C23: =C8+C12+C14+C15+C13+C16+C17+C22 -> 89921.27931
B25: ACTIVIDADES DE INVERSIÓN | D25: Vínculo
B26: Compra propiedad, planta y equipo | C26: =-C27-C28 -> -15000 | D26: BG y ER
B27: Secadora | C27: 5000
B28: Desgranadora | C28: 10000
B29: Compra de tractor | C29: -70000 | D29: BG y ER
B30: Venta de tractores viejos | C30: 100000 | D30: BG y ER
B31: Flujo de efectivo por actividades de inversión | C31: =C26+C29+C30 -> 15000
B33: ACTIVIDADES DE FINANCIAMIENTO | D33: Vínculo
B34: Pago gastos financieros (intereses) | C34: =-'Estado de Resultados'!M17 -> -20000 | D34: ER
B35: Abono a deuda de largo plazo | C35: =-'Estado de Resultados'!M18 -> -13437.97033 | D35: BG
B36: Pago de dividendos | C36: =-'Estado de Resultados'!H27 -> -21940.8878 | D36: ER
B37: Aumento deuda largo plazo (préstamo) | C37: ='Estado de Resultados'!L7 -> 100000 | D37: BG
B38: Aportación de capital | C38: 100000 | D38: BG
B39: Flujo de efectivo actividades de financiamiento | C39: =SUM(C34:C38) -> 144621.1419
B41: AUMENTO EN EL EFECTIVO | C41: =C23+C31+C39 -> 249542.4212 | D41: Vínculo
B42: EFECTIVO (Caja, bancos, etc.) año 2021 | C42: 80000 | D42: BG
B43: FLUJO DE EFECTIVO NETO (Caja, bancos, etc.) año 2022 | C43: =C41+C42 -> 329542.4212
